Cogmind - Beta 15 @@@ ROGUE MODE // 2025.06.29 @ 02:28:08 Player: Cogchaaaan Result: Destroyed by Architect with Modified Sigix Sheargun Performance ------------- Evolutions (9) 4500 Regions Visited (35) 7000 Robots Destroyed (410) 2050 Value Destroyed (20993) 20993 Prototype IDs (373) 7460 Alien Tech Used (8) 1600 Bonus (64510) 64510 TOTAL SCORE: 108113 Bonus ------- Triggered High Security 500 High Alert Combat Kills 12224 Follower Combat Kills 1114 Awakened Behemoth Slayer 1000 Registered with UFD 300 Met Optimus in HQ 500 Met Imprinter 300 Met Zhirov 300 Met Warlord at Base 500 MAIN.C Attacked Warlord 500 Warlord Defense Kills 294 Scanned by Researcher 500 Destroyed Superfortress 15000 Met Optimus at Protoforge 1000 Completed Drillbomb Mission10000 Destroyed MAIN.C Guards 500 Met MAIN.C 5000 Destroyed MAIN.C Shell 5000 Destroyed MAIN.C 10000 Met Architect 300 Destroyed A8 300 Friendly Fire -622 Cogmind --------- Core Integrity 0/1600 Matter 285/300 Energy 214/220 System Corruption 1% Temperature Cool (14) Movement Hovering (43) Location -1/Access_0 Parts ------- > --- POWER (3) -------- Concept Zero-point Core > --- PROPULSION (8) --- Antigrav Array Combat Linear Gravjet Gravjet Array Concept Combat Aerolev Unit > --- UTILITY (12) ----- 2N-1CE's Frost Array Concept Antigrav Storage Unit Experimental Optical Array Advanced Terrain Scan Processor Experimental Melee Analysis Suite Experimental Core Analyzer Experimental Core Analyzer Centrium Heavy Armor Plating Graphene Brace > --- WEAPON (3) ------- Concept Deflector Sword > --- INVENTORY (25) --- Zero-point Reactor Concept Zero-point Core Concept Zero-point Core Concept NT7 Matterbank (750) Long-range Terrain Scanner Concept Cloak Mesh Concept Impact Drone Bay (6/6) Concept Plasma Driver Concept Miniperforator Concept Rapid Grenade Launcher Peak State ------------ > --- POWER ------------ Hybrid Graviton Reactor Zero-point Reactor Concept Zero-point Core > --- PROPULSION ------- Experimental Antigrav System Experimental Antigrav System Gravjet Array Gravjet Array Concept Combat Aerolev Unit Concept Combat Aerolev Unit > --- UTILITY ---------- Concept Antigrav Storage Unit Experimental Optical Array Experimental Melee Analysis Suite Experimental Melee Analysis Suite Experimental Core Analyzer Femtoactuators Concept Reaction Jets SHELL Armor Graphene Brace AEGIS Remote Shield > --- WEAPON ----------- Concept Plasma Driver Sigix Broadsword > --- INVENTORY -------- Light Quantum Reactor Light Quantum Reactor Concept Zero-point Core Concept Zero-point Core Concept Zero-point Core Antigrav Array Gravjet Array Gravjet Array Concept Combat Aerolev Unit 2N-1CE's Frost Array Concept NT7 Matterbank Structural Scanner Concept Cloak Mesh Concept Antimissile System Concept Matter Streamer Concept Impact Drone Bay Transdimensional Reconstructor Concept Miniperforator Concept Rapid Grenade Launcher Concept Deflector Sword Experimental Jetlance Experimental Jetlance [Rating: 297] Favorites ----------- Power Improved Ion Engine Engine Improved Ion Engine Power Core Concept Zero-point Core Reactor Hybrid Graviton Reactor Propulsion Light Treads Treads Light Treads Leg Aluminum Leg Hover Unit Experimental Antigrav System Flight Unit Improved Cesium-ion Thruster Utility Experimental Melee Analysis Suite Device 2N-1CE's Frost Array Storage High-capacity Storage Unit Processor Experimental Melee Analysis Suite Hackware Hacking Suite Protection Hardened Light Armor Plating Weapon Heavy Assault Rifle Energy Gun Advanced Beam Rifle Energy Cannon Phase Cannon Ballistic Gun Heavy Assault Rifle Ballistic Cannon Concept Miniperforator Launcher Fusion Bomb Launcher Special Weapon Improved Plasma Cutter Slashing Weapon Sigix Broadsword Piercing Weapon Experimental Jetlance Special Melee Weapon Improved Datajack Build | -11 -10 -10 -9 -9 -8 -8 -8 -8 -6 -6 -6 -6 -6 -6 -5 -5 -5 -5 -5 -5 -5 -4 -4 -4 -4 -4 -3 -3 -3 -2 -2 -2 -1 -1 -1 ------- Run | Yrd Mat Min Mat Min Mat Sto Rec Scr Fac Was Fac Low Low Zio Pro Fac Was Fac Upp Upp War Pro Fac Upp Upp Zhi Pro Res Tes Res Qua Frg Acc Com Ac0 Slots Evolved 18 | . . . 2 . 2 . . . 4 . . . . . . 2 . . . . . . 2 . . . . 2 . 2 . . 2 . . Power 2 | . . . . . . . . . . . . . . . . . . . . . . . . . . . . . . 1 . . 1 . . Propulsion 5 | . . . 1 . 1 . . . 1 . . . . . . . . . . . . . . . . . . 1 . 1 . . . . . Utility 10 | . . . . . 1 . . . 3 . . . . . . 2 . . . . . . 2 . . . . 1 . . . . 1 . . Weapon 1 | . . . 1 . . . . . . . . . . . . . . . . . . . . . . . . . . . . . . . . Parts Attached 232 | 8 8 8 25 1 25 22 . 8 10 . 7 . . 3 2 6 . 3 1 . 10 1 1 . . 1 . 5 6 3 4 42 1 13 8 Power 22 | 1 2 1 2 . 1 2 . 1 . . 2 . . . . . . 1 . . . . 1 . . . . 1 . 1 1 2 . 2 1 Engine 9 | 1 2 1 2 . 1 2 . . . . . . . . . . . . . . . . . . . . . . . . . . . . . Core 6 | . . . . . . . . 1 . . 2 . . . . . . 1 . . . . . . . . . . . . . 1 . . 1 Reactor 7 | . . . . . . . . . . . . . . . . . . . . . . . 1 . . . . 1 . 1 1 1 . 2 . Propulsion 75 | 2 3 . 11 . 14 8 . 3 3 . 3 . . . . 3 . . . . 1 . . . . . . 2 . 1 1 12 . 3 5 Treads 34 | . 2 . 11 . 14 7 . . . . . . . . . . . . . . . . . . . . . . . . . . . . . Leg 3 | 2 1 . . . . . . . . . . . . . . . . . . . . . . . . . . . . . . . . . . Wheel . | . . . . . . . . . . . . . . . . . . . . . . . . . . . . . . . . . . . . Hover 14 | . . . . . . . . . . . . . . . . . . . . . . . . . . . . . . . . 6 . 3 5 Flight 24 | . . . . . . 1 . 3 3 . 3 . . . . 3 . . . . 1 . . . . . . 2 . 1 1 6 . . . Utility 76 | 2 2 3 3 . 4 1 . 2 7 . 1 . . 1 1 3 . 2 1 . 5 . . . . 1 . 1 6 1 . 19 1 7 2 Device 34 | 1 . 2 . . 1 1 . 1 2 . 1 . . 1 . 1 . . . . 3 . . . . . . 1 3 1 . 9 1 3 2 Storage 5 | 1 2 . 1 . . . . . . . . . . . . . . . . . . . . . . . . . . . . 1 . . . Processor 13 | . . . . . . . . 1 1 . . . . . . 1 . 2 . . 1 . . . . . . . . . . 5 . 2 . Hackware 6 | . . . . . . . . . 1 . . . . . 1 . . . 1 . . . . . . 1 . . 2 . . . . . . Protection 18 | . . 1 2 . 3 . . . 3 . . . . . . 1 . . . . 1 . . . . . . . 1 . . 4 . 2 . Artifact . | . . . . . . . . . . . . . . . . . . . . . . . . . . . . . . . . . . . . Weapon 59 | 3 1 4 9 1 6 11 . 2 . . 1 . . 2 1 . . . . . 4 1 . . . . . 1 . . 2 9 . 1 . Energy Gun 9 | 2 . 2 1 . . 4 . . . . . . . . . . . . . . . . . . . . . . . . . . . . . Energy Cannon 7 | . . . . . . 1 . 1 . . 1 . . . . . . . . . 1 1 . . . . . . . . . 2 . . . Ballistic Gun 25 | 1 1 2 8 1 5 4 . . . . . . . . . . . . . . 1 . . . . . . . . . . 2 . . . Ballistic Cannon 2 | . . . . . . . . . . . . . . . . . . . . . . . . . . . . . . . . 2 . . . Launcher 6 | . . . . . 1 1 . . . . . . . . 1 . . . . . 1 . . . . . . . . . 1 1 . . . Special Weapon 2 | . . . . . . . . . . . . . . 1 . . . . . . 1 . . . . . . . . . . . . . . Impact Weapon . | . . . . . . . . . . . . . . . . . . . . . . . . . . . . . . . . . . . . Slashing Weapon 3 | . . . . . . 1 . . . . . . . . . . . . . . . . . . . . . . . . 1 . . 1 . Piercing Weapon 4 | . . . . . . . . . . . . . . 1 . . . . . . . . . . . . . 1 . . . 2 . . . Special Melee Weapon 1 | . . . . . . . . 1 . . . . . . . . . . . . . . . . . . . . . . . . . . . Unidentified Prototypes 38 | . . . 1 . . 6 . . 1 . 1 . 1 2 . . . . . . 5 . . . . 1 . 1 4 . 5 9 . 1 . Parts Lost 50 | . 3 1 . . 6 4 . . . . . 1 . . 1 . . . . . . . . . . . . . . 2 . 8 1 4 19 Power 5 | . 1 . . . . 1 . . . . . . . . . . . . . . . . . . . . . . . . . . . . 3 Propulsion 18 | . 1 . . . 3 1 . . . . . . . . . . . . . . . . . . . . . . . . . 3 . 1 9 Utility 18 | . . . . . 1 1 . . . . . 1 . . 1 . . . . . . . . . . . . . . 2 . 4 1 2 5 Weapon 9 | . 1 1 . . 2 1 . . . . . . . . . . . . . . . . . . . . . . . . . 1 . 1 2 Highest Loss Streak 14 | . 2 1 . . 4 4 . . . . . 1 . . 1 . . . . . . . . . . . . . . 1 . 3 1 3 14 To Critical Strikes . | . . . . . . . . . . . . . . . . . . . . . . . . . . . . . . . . . . . . Average Backups 16 | 2 9 12 18 19 19 18 20 18 9 10 9 10 9 10 9 9 9 9 9 9 9 9 8 8 9 9 9 10 12 10 12 18 21 21 16 Power 2 | . 1 1 2 3 3 2 2 1 1 2 2 2 2 2 2 2 1 2 2 2 2 2 2 2 2 2 2 2 3 2 1 2 5 5 3 Propulsion 3 | 1 2 2 5 6 4 5 6 5 1 2 2 2 2 2 2 2 2 2 2 2 2 2 2 2 2 2 2 2 2 1 1 1 3 5 3 Utility 6 | . 2 4 6 7 8 8 8 7 3 4 3 4 4 4 4 3 3 3 3 3 2 3 1 2 2 2 2 1 3 3 4 8 7 6 6 Weapon 3 | . 3 4 3 2 2 3 4 2 1 2 2 2 1 2 1 1 2 1 1 1 2 2 3 2 3 3 2 2 2 2 2 5 5 3 3 Tool/Special . | . . . . . . . . . . . . . . . . . . . . . . . . . . . . . . . . . . . . Unused Backups 40 | . . 1 4 1 5 3 . 3 4 . . . . . . 1 1 . . . . . . . . . . . 1 . 1 7 . 3 5 Power 9 | . . . . . 2 . . . . . . . . . . . 1 . . . . . . . . . . . . . . 1 . 2 3 Propulsion 10 | . . . . . . . . 2 3 . . . . . . 1 . . . . . . . . . . . . 1 . . 3 . . . Utility 14 | . . . 2 1 2 2 . 1 1 . . . . . . . . . . . . . . . . . . . . . . 2 . 1 2 Weapon 6 | . . 1 2 . 1 1 . . . . . . . . . . . . . . . . . . . . . . . . . 1 . . . Tool/Special 1 | . . . . . . . . . . . . . . . . . . . . . . . . . . . . . . . 1 . . . . Average Slot Usage (%) 92 | . 99 100 99 100 98 97 100 97 92 93 93 92 86 81 86 83 83 84 88 88 87 88 89 90 90 89 90 89 90 89 90 84 75 87 79 Engine 4 | . 14 14 11 11 8 8 9 6 . . . . . . . . . . . . . . . . . . . . . . . . . . . Core 2 | . . . . . . . . 2 6 6 6 6 6 6 6 5 5 5 5 5 5 5 . . . . . . . . . 3 3 3 2 Reactor 1 | . . . . . . . . . . . . . . . . . . . . . . . 4 5 5 5 5 3 4 7 8 2 3 6 5 Treads 15 | . 14 28 33 33 35 35 36 30 . . . . . . . . . . . . . . . . . . . . . . . . . . . Hover 4 | . . . . . . . . . . . . . . . . . . . . . . . . . . . . . . . . 7 23 25 21 Flight 11 | . . . . . . . . 5 33 33 33 33 33 31 31 32 33 33 33 33 33 33 30 30 30 30 30 30 31 33 33 21 . . . Device 10 | . 14 12 . . 8 7 9 9 13 13 13 12 6 6 6 7 11 11 11 11 9 11 19 20 20 17 15 17 14 13 15 14 14 14 8 Storage 7 | . 14 14 11 11 9 9 9 9 6 6 6 6 6 6 6 5 5 5 5 5 5 5 5 5 5 5 5 4 4 4 4 4 3 3 3 Processor 7 | . . . . . . . . 1 6 6 6 6 6 6 6 11 11 12 12 11 12 16 15 15 15 15 15 13 13 12 12 19 15 16 22 Hackware 1 | . . . . . . . . . 5 6 6 6 6 6 9 5 5 5 9 11 8 5 5 5 5 7 10 9 12 8 8 1 . . . Protection 5 | . . 1 11 11 9 8 9 7 5 6 6 6 6 6 6 4 5 5 5 5 5 5 5 5 5 5 5 4 4 4 1 1 3 2 2 Energy Gun 2 | . 12 24 . . . 12 . . . . . . . . . . . . . . . . . . . . . . . . . . . . . Ballistic Gun 10 | . 15 3 32 33 26 13 27 17 . . . . . . . . . . . . . . . . . . . . . . . . . . . Slashing Weapon 1 | . . . . . . . . 3 6 6 6 6 6 2 . . . . . . . . . . . . . . . . 2 3 3 3 3 Piercing Weapon 1 | . . . . . . . . . . . . . . 3 6 5 5 5 5 5 5 5 5 5 5 5 5 4 4 4 3 1 . 6 4 Peak Build Rating 297 | 7 8 10 18 18 25 39 37 47 62 59 69 64 68 70 75 81 73 82 82 82 90 90 96 101 96 107 112 133 145 155 182 276 288 297 273 Average Rating 99 | 5 7 8 15 18 23 33 37 37 54 59 61 63 63 63 68 75 73 74 77 77 78 85 95 96 96 101 107 123 134 149 171 232 286 272 233 On Entrance 86 | . 7 8 9 18 18 22 37 37 47 59 59 64 63 63 64 64 73 73 77 77 77 85 83 96 96 96 107 107 127 136 150 182 274 288 273 Naked Turns . | . . . . . . . . . . . . . . . . . . . . . . . . . . . . . . . . . . . . Heaviest Build 131 | 12 27 30 61 61 71 67 62 62 24 24 26 29 25 26 26 30 30 30 30 30 31 30 33 33 33 33 30 41 41 49 51 109 119 131 119 Greatest Support 128 | 20 40 40 63 63 83 82 82 82 27 33 30 36 36 30 36 30 30 30 30 30 36 42 42 36 36 36 36 44 50 59 60 128 128 128 127 Greatest Overweight (x) 3 | 3 . . 1 . . 1 . 1 . . . . . . . 1 . . . . . . . . . . . . . . . 2 . 1 1 Average Overweight (x) . | . . . . . . . . . . . . . . . . . . . . . . . . . . . . . . . . . . . . Largest Inventory Capacity 25 | 8 15 15 20 20 20 20 20 20 10 10 10 10 10 10 10 10 10 10 10 10 10 10 10 10 10 10 10 15 15 15 15 25 25 25 25 Average Capacity 17 | 7 12 15 19 20 20 20 20 18 10 10 10 10 10 10 10 10 10 10 10 10 10 10 10 10 10 10 10 11 15 15 15 21 25 25 25 Most Carried 25 | 4 11 14 20 20 20 20 20 20 10 10 10 10 10 10 10 10 10 10 10 10 10 10 9 9 9 10 10 14 15 14 15 25 24 25 24 Average Carried 17 | 2 9 12 18 19 19 18 20 18 9 10 9 10 9 10 9 9 9 9 9 9 9 9 8 8 9 9 9 10 14 12 14 20 23 24 18 Final Capacity 25 | 8 15 15 20 20 20 20 20 10 10 10 10 10 10 10 10 10 10 10 10 10 10 10 10 10 10 10 10 15 15 15 15 25 25 25 25 Final Carried 25 | 4 11 12 20 20 19 20 20 10 10 10 10 10 10 10 10 10 10 10 10 10 10 10 9 9 9 10 10 12 15 13 15 25 23 24 10 Class Distribution -------------------- 21% | Tank 20% | Scavenger-Sprinter 12% | Scavenger-Tank 11% | Mutant 8% | Scout 7% | Hacker-Scout 3% | Scavenger-Gladiator 3% | Scavenger-Mutant 3% | Sprinter Dominant Class ---------------- Mutant | -10/Materials Mutant | -10/Mines Tank | -9/Materials Tank | -9/Mines Scavenger-Tank | -8/Materials Scavenger-Tank | -8/Storage Tank | -8/Recycling Tank | -8/Scraptown Scout | -6/Factory Scout | -6/Waste Scout | -6/Factory Scout | -6/Lower Caves Sprinter | -6/Lower Caves Sprinter | -6/Zion Hacker-Sprinter | -5/Proximity Caves Scout | -5/Factory Scout | -5/Waste Scout | -5/Factory Hacker-Scout | -5/Upper Caves Hacker-Scout | -5/Upper Caves Hacker-Sprinter | -5/Warlord Scout | -4/Proximity Caves Infiltrator-Ninja | -4/Factory Infiltrator-Ninja | -4/Upper Caves Infiltrator-Ninja | -4/Upper Caves Infiltrator-Ninja | -4/Zhirov Hacker-Scout | -3/Proximity Caves Hacker-Scout | -3/Research Hacker-Scout | -3/Testing Hacker-Scout | -2/Research Hacker-Scout | -2/Quarantine Scavenger-Sprinter | -2/Protoforge Scavenger-Sprinter | -1/Access Scavenger-Sprinter | -1/Command Scavenger-Sprinter | -1/Access_0 Resources | -11 -10 -10 -9 -9 -8 -8 -8 -8 -6 -6 -6 -6 -6 -6 -5 -5 -5 -5 -5 -5 -5 -4 -4 -4 -4 -4 -3 -3 -3 -2 -2 -2 -1 -1 -1 ----------- Run | Yrd Mat Min Mat Min Mat Sto Rec Scr Fac Was Fac Low Low Zio Pro Fac Was Fac Upp Upp War Pro Fac Upp Upp Zhi Pro Res Tes Res Qua Frg Acc Com Ac0 Matter Collected 14538 | 287 114 147 900 158 1329 1015 72 110 150 . 51 44 30 50 10 259 10 . 56 64 258 30 . 47 70 49 . 110 57 31 238 8075 . 562 155 Remotely 1940 | . . . . . . . . . . . . . . . . . . . . . . . . . . . . . . . . 1940 . . . Salvage Created 21143 | 92 628 235 1403 287 2062 2466 215 . 53 . . . . . 56 159 . . . 140 61 . . 25 . 306 . . 37 41 313 9668 155 1870 871 Parts 953 | 5 32 22 87 10 107 107 14 . 6 . . . . . 4 8 . . . 1 2 . . 4 . 2 . . 3 7 9 396 12 67 48 Haulers Intercepted 14 | . 1 . 5 . 3 5 . . . . . . . . . . . . . . . . . . . . . . . . . . . . . Recyclers Shooed 4 | . 1 . 1 . . 2 . . . . . . . . . . . . . . . . . . . . . . . . . . . . . Parts Field Recycled . | . . . . . . . . . . . . . . . . . . . . . . . . . . . . . . . . . . . . Retrieved Matter . | . . . . . . . . . . . . . . . . . . . . . . . . . . . . . . . . . . . . Parts Self-Destructed 8 | . . . . . . . . . . . . . 3 . 2 . . . . . . . . 2 . 1 . . . . . . . . . Prevented 5 | . . . . . . . . . . . . . . . . . . . . 1 . . . 3 1 . . . . . . . . . . Kills | -11 -10 -10 -9 -9 -8 -8 -8 -8 -6 -6 -6 -6 -6 -6 -5 -5 -5 -5 -5 -5 -5 -4 -4 -4 -4 -4 -3 -3 -3 -2 -2 -2 -1 -1 -1 ------- Run | Yrd Mat Min Mat Min Mat Sto Rec Scr Fac Was Fac Low Low Zio Pro Fac Was Fac Upp Upp War Pro Fac Upp Upp Zhi Pro Res Tes Res Qua Frg Acc Com Ac0 Combat Hostiles Destroyed 327 | . 17 9 23 8 35 41 3 . . . . . . . 5 . . . . . 3 . . 4 . . . . . . . 144 6 20 9 Melee 36 | . . . . . . . . . . . . . . . . . . . . . . . . . . . . . . . . 19 . 8 9 Guns 118 | . 17 9 23 8 25 29 3 . . . . . . . . . . . . . . . . . . . . . . . . 4 . . . Cannons 101 | . . . . . . . . . . . . . . . . . . . . . . . . . . . . . . . . 101 . . . AOE 69 | . . . . . 10 9 . . . . . . . . 5 . . . . . 3 . . 4 . . . . . . . 20 6 12 . Classes Destroyed 27 | 2 4 1 4 . 2 1 . . . . . . . . . . . . . . 1 . . . . . . . . . . 11 . 1 . Worker 6 | . . . . . 5 . . . . . . . . . . . . . . . . . . . . . . . . . . . 1 . . Builder 13 | . . 2 1 . 3 2 . . . . . . . . . 2 . . . . . . . . . . . . . 3 . . . . . Tunneler 1 | 1 . . . . . . . . . . . . . . . . . . . . . . . . . . . . . . . . . . . Hauler 14 | . 1 . 5 . 3 5 . . . . . . . . . . . . . . . . . . . . . . . . . . . . . Recycler 10 | 1 1 . 1 . 3 1 . . . . . . . . . 1 . . . . . . . . . . . . . . 2 . . . . Carrier 4 | . . . . . . . . . . . . . . . . . . . . . . . . . . . . . . . . 4 . . . Mechanic 11 | . . . . . 1 3 . . . . . . . . . . . . . . . . . . . . . . . . . 7 . . . Operator 3 | . . . 1 . 1 . . . 1 . . . . . . . . . . . . . . . . . . . . . . . . . . Drone 21 | . . . . . . . . . . . . . . . . . . . . . . . . . . . . . . . . 21 . . . Watcher 15 | . 2 . 3 . 5 1 . . 1 . . . . . . . . . . . . . . . . . . . 1 . 1 . . 1 . Swarmer 66 | . 9 6 3 2 3 3 . . . . . . . . 5 . . . . . . . . 4 . . . . . . . 13 6 12 . Saboteur 4 | . . . . . . . . . . . . . . . . . . . . . . . . . . . . . . . . 4 . . . Grunt 97 | . 8 3 9 5 22 25 1 . . . . . . . . . . . . . 2 . . . . . . . . . . 22 . . . Brawler 12 | . . . 1 1 2 3 . . . . . . . . . . . . . . . . . . . . . . . . . 5 . . . Duelist 7 | . . . 1 . . 1 . . . . . . . . . . . . . . . . . . . . . . . . . 5 . . . Protector 4 | . . . . . . . . . . . . . . . . . . . . . 1 . . . . . . . . . . 3 . . . Researcher 4 | . . . . . . . . . . . . . . . . . . . . . . . . . . . . . . . . 4 . . . Sentry 36 | . . . 9 . 8 8 3 . . . . . . . . . . . . . . . . . . . . . . . . 8 . . . Demolisher 1 | . . . . . . 1 . . . . . . . . . . . . . . . . . . . . . . . . . . . . . Hunter 12 | . . . . . . . . . . . . . . . . . . . . . . . . . . . . . . . . 12 . . . Programmer 8 | . . . . . . . . . . . . . . . . . . . . . . . . . . . . . . . . 7 . 1 . Heavy 1 | . . . . . . . . . . . . . . . . . . . . . . . . . . . . . . . . . . 1 . M Guard 2 | . . . . . . . . . . . . . . . . . . . . . . . . . . . . . . . . . . 2 . Enhanced Grunt 4 | . . . . . . . . . . . . . . . . . . . . . . . . . . . . . . . . . . . 4 Enhanced Hunter 4 | . . . . . . . . . . . . . . . . . . . . . . . . . . . . . . . . . . . 4 Decapitator 7 | . . . . . . . . . . . . . . . . . . . . . . . . . . . . . . . . 7 . . . Immortal 6 | . . . . . . . . . . . . . . . . . . . . . . . . . . . . . . . . 6 . . . Combat Programmer 2 | . . . . . . . . . . . . . . . . . . . . . . . . . . . . . . . . . . 2 . Striker 11 | . . . . . . . . . . . . . . . . . . . . . . . . . . . . . . . . 11 . . . Executioner 20 | . . . . . . . . . . . . . . . . . . . . . . . . . . . . . . . . 20 . . . Scrapper 1 | . . . . . . . . . . . . . . . . . . . . . . . . . . . . . . . . 1 . . . Elite 1 | . . . . . . . . . . . . . . . . . . . . . . . . . . . . . . . . 1 . . . Best Kill Streak 44 | 1 5 3 4 4 13 13 1 . 1 . . . . . 5 1 . . . . 2 . . 4 . . . . 1 3 1 44 6 13 4 Combat Bots Only 37 | . 3 3 4 3 5 7 1 . . . . . . . 5 . . . . . 2 . . 4 . . . . . . . 37 6 12 4 Max Kills in Single Turn 11 | 1 1 1 2 1 11 3 2 . 1 . . . . . 3 1 . . . . 1 . . 2 . . . . 1 1 1 3 6 4 1 Gunslinging 1 | . . . 1 . . 1 . . . . . . . . . . . . . . . . . . . . . . . . . . . . . Exploded 6 | . . . . . 3 2 . . . . . . . . 3 . . . . . 1 . . 2 . . . . . . . 3 6 3 . Melee 1 | . . . . . . . . . . . . . . . . . . . . . . . . . . . . . . . . 1 . 1 1 Uniques/NPCs Destroyed 3 | . . . . . . . . . . . . . . . . . . . . . . . . . . . . . . . . . . 2 1 MAIN.C Shell (-1/Command) MAIN.C (-1/Command) A8 (-1/Access_0) Combat | -11 -10 -10 -9 -9 -8 -8 -8 -8 -6 -6 -6 -6 -6 -6 -5 -5 -5 -5 -5 -5 -5 -4 -4 -4 -4 -4 -3 -3 -3 -2 -2 -2 -1 -1 -1 -------- Run | Yrd Mat Min Mat Min Mat Sto Rec Scr Fac Was Fac Low Low Zio Pro Fac Was Fac Upp Upp War Pro Fac Upp Upp Zhi Pro Res Tes Res Qua Frg Acc Com Ac0 Hostile Shots Fired 1403 | . 72 47 70 25 141 123 . . . . . 29 5 . 22 4 . . 1 9 12 4 4 12 . . 4 . . 10 2 286 10 124 387 Missed 511 | . 15 15 22 5 25 32 . . . . . 16 3 . 10 2 . . 1 5 5 2 3 6 . . 3 . . 5 1 135 4 55 141 Intercepted 8 | . . . . . . . . . . . . . . . . . . . . . . . . . . . . . . . . . . 8 . Hits 892 | . 57 32 48 20 116 91 . . . . . 13 2 . 12 2 . . . 4 7 2 1 6 . . 1 . . 5 1 151 6 69 246 Melee 63 | . . . 2 . 1 7 . . . . . . . . . . . . . . . . . . . . . . . . . 21 . . 32 Projectile 829 | . 57 32 46 20 115 84 . . . . . 13 2 . 12 2 . . . 4 7 2 1 6 . . 1 . . 5 1 130 6 69 214 AOE 6 | . . . . . . 1 . . . . . . . . . . . . . . . . . . . . . . . . . 2 . 3 . Critical Strikes 70 | . . 1 2 . 8 8 . . . . . . . . . . . . . . . . . . . . . . . . . 19 . 5 27 Actively Blocked 50 | . . . . . . . . . . . . . . . . . . . . . . . . . . . . . . . . 18 . 5 27 Part Disruptions 11 | . . . . . . . . . . . . . . . . . . . . . . . . . . . . . . . . . . 4 7 Damage Taken 19029 | . 541 362 647 241 1857 1601 . . . . . 154 28 . 180 46 . . . 46 37 41 21 85 . . 29 . . 120 . 4532 158 2818 5485 Core 2460 | . 93 54 30 22 93 113 . . . . . 40 . . 57 . . . . 22 18 . . 14 . . 29 . . . . 404 . 64 1407 Absorbed by Shields 2741 | . . . . . . . . . . . . . . . . . . . . . . . . . . . . . . . . 47 . . 2694 Redirected to Shielding 137 | . . . . . . . . . . . . . . . . . . . . . . . . . . . . . . . . 137 . . . Ignored by Resistances 565 | . . . . . . . . . . . . . . . . . . . . . . . . . . . . . . . . . . . 565 Regen/Repaired (Parts) 3993 | . 54 . . . 157 207 . . . . . . . . . . 23 . . . 7 . . . . . . . . . . 2732 45 599 169 Core Remaining (%) 80 | 100 . 41 . 87 . . . 62 . . . . . . 88 . . . . . . 96 . . . . 96 . 100 . . 55 . . . Volleys Fired 944 | 7 82 32 78 16 114 106 3 . 8 . 3 . 2 . 15 4 . 2 2 4 7 5 . 7 . . 10 7 6 4 10 377 20 8 5 Largest 3 | 2 2 2 3 3 3 3 3 . 1 . 1 . 1 . 1 1 . 1 1 1 1 1 . 1 . . 1 1 1 1 1 1 1 1 1 Hottest 147 | 70 90 106 69 69 69 147 75 . 85 . 90 . 90 . 90 90 . 90 90 90 39 90 . 90 . . 90 90 90 90 90 140 140 140 140 Shots Fired 1629 | 14 164 64 234 46 315 280 9 . 8 . 3 . 2 . 15 4 . 2 2 4 7 5 . 7 . . 10 7 6 4 10 374 20 8 5 Gun 1154 | 14 164 64 234 46 307 267 9 . . . . . . . . . . . . . . . . . . . . . . . . 49 . . . Cannon 407 | . . . . . . . . . 8 . 3 . 2 . 9 4 . 2 2 4 . 5 . 3 . . 10 7 6 4 10 300 19 4 5 Launcher 68 | . . . . . 8 13 . . . . . . . . 6 . . . . . 7 . . 4 . . . . . . . 25 1 4 . Special . | . . . . . . . . . . . . . . . . . . . . . . . . . . . . . . . . . . . . Kinetic 1124 | 7 60 26 234 46 307 162 9 . . . . . . . . . . . . . . . . . . . . . . . . 272 . 1 . Thermal 422 | 7 104 38 . . . 105 . . 8 . 3 . 2 . 9 4 . 2 2 4 . 5 . 3 . . 10 7 3 4 10 65 19 3 5 Explosive 58 | . . . . . 8 3 . . . . . . . . 6 . . . . . 7 . . 4 . . . . . . . 25 1 4 . Electromagnetic 10 | . . . . . . 10 . . . . . . . . . . . . . . . . . . . . . . . . . . . . . Entropic 15 | . . . . . . . . . . . . . . . . . . . . . . . . . . . . . 3 . . 12 . . . Robot Hit Streak 28 | 3 9 6 18 11 17 12 8 . . . . . . . 1 . . . . . 1 . . . . . . . . . . 28 . 8 . Robot Miss Streak 11 | 3 5 3 3 4 6 5 . . . . . . . . 2 . . . . . 1 . . . . . . . . . . 11 . 2 . Penetration Max 2 | . . . . . . . . . . . . . . . . . . . . . . . . . . . . . . . . 2 . . . Secondary Targets 21 | . . 1 4 2 5 9 . . . . . . . . . . . . . . . . . . . . . . . . . . . . . Max Gunslinging Chain 1 | . . 1 1 1 1 1 . . . . . . . . . . . . . . . . . . . . . . . . . . . . . Shots Hit Robots 1217 | 6 103 39 162 30 196 167 7 . 8 . . . . . 1 4 . . . 3 4 . . . . 6 . . 1 4 4 301 . 89 82 Core Hits 912 | 4 40 18 56 13 103 90 6 . 1 . . . . . 7 1 . . . 2 18 . . 8 . 3 . . 1 2 1 448 8 56 26 Critical Kills 112 | . . . 1 . 1 1 1 . . . . . . . . . . . . . . . . . . . . . . . . 108 . . . Critical Parts Destroyed 116 | . 1 . . . 3 1 . . . . . . . . . . . . . . . . . . . . . . . . . 110 . 1 . Critical Strikes 341 | . 1 1 1 . 4 4 1 . . . . . . . . . . . . 1 . . . . . 1 . . . 1 . 245 . 41 40 Burn 3 | . . 1 . . . 2 . . . . . . . . . . . . . . . . . . . . . . . . . . . . . Destroy 251 | . 1 . 1 . 4 2 1 . . . . . . . . . . . . . . . . . . . . . . . . 240 . 2 . Sever 4 | . . . . . . . . . . . . . . . . . . . . . . . . . . . . . . . . 3 . 1 . Impale 83 | . . . . . . . . . . . . . . . . . . . . 1 . . . . . 1 . . . 1 . 2 . 38 40 Melee Attacks 517 | . . . . . . 1 . . 46 . 24 5 5 1 14 25 . 7 2 7 15 9 8 1 1 6 10 18 9 31 28 64 . 93 87 Impact . | . . . . . . . . . . . . . . . . . . . . . . . . . . . . . . . . . . . . Slashing 148 | . . . . . . 1 . . 44 . 24 5 5 . . . . . . . . . . . . . . . . . 8 47 . 11 3 Piercing 367 | . . . . . . . . . . . . . . 1 14 25 . 7 2 7 15 9 8 1 1 6 10 18 9 31 20 17 . 82 84 Sneak Attacks 35 | . . . . . . . . . 4 . . . . . . 4 . . . . . . . . . . . . 1 4 2 20 . . . Combat Hostiles . | . . . . . . . . . . . . . . . . . . . . . . . . . . . . . . . . . . . . Follow-up Attacks 25 | . . . . . . . . . . . . . . . . . . . . . . . . . . . . . . . . 1 . 12 12 Damage Inflicted 46176 | 64 1100 489 2508 523 5343 4604 232 . 301 . . . . . 499 311 . . . 236 1008 . . 286 . 659 . . 114 364 460 15117 563 7145 4250 Guns 12656 | 61 1094 455 2499 468 3106 3146 132 . . . . . . . . . . . . . . . . . . . . . . . . 1695 . . . Cannons 3441 | . . . . . . . . . . . . . . . . . . . . . . . . . . . . . . . . 3349 82 10 . Explosions 13089 | . . . . . 2211 1451 . . . . . . . . 499 . . . . . 942 . . 286 . . . . . . . 5608 481 1611 . Melee 16750 | . . . . . . . . . 301 . . . . . . 311 . . . 236 66 . . . . 659 . . 114 364 460 4465 . 5524 4250 Ramming 240 | 3 6 34 9 55 26 7 100 . . . . . . . . . . . . . . . . . . . . . . . . . . . . Kinetic 11821 | 13 287 148 2499 468 3106 1710 132 . . . . . . . . . . . . . . . . . . . . . . . . 3448 . 10 . Thermal 5623 | 48 807 307 . . 1260 1523 . . . . . . . . . . . . . . . . . . . . . . . . . 1596 82 . . Explosive 10653 | . . . . . 899 327 . . . . . . . . 499 . . . . . 942 . . 286 . . . . . . . 5608 481 1611 . Electromagnetic 1089 | . . . . . 52 1037 . . . . . . . . . . . . . . . . . . . . . . . . . . . . . Impact . | . . . . . . . . . . . . . . . . . . . . . . . . . . . . . . . . . . . . Slashing 5463 | . . . . . . . . . 301 . . . . . . . . . . . . . . . . . . . . . 321 3792 . 863 186 Piercing 11287 | . . . . . . . . . . . . . . . . 311 . . . 236 66 . . . . 659 . . 114 364 139 673 . 4661 4064 Highest Corruption 8 | . . . 2 2 . . . . . . . . . . . . . . . . . . . . . . . . . . . 8 3 5 1 Average Corruption 5 | . . . 2 2 . . . . . . . . . . . . . . . . . . . . . . . . . . . 8 2 4 1 Corruption Purged 5 | . . . . . . . . . . . . . . . . . . . . . . . . . . . . . . . . . . 5 . Corruption Blocked . | . . . . . . . . . . . . . . . . . . . . . . . . . . . . . . . . . . . . Effects 139 | . . . 3 14 . . . . . . . . . . . . . . . . . . . . . . . . . . . 65 1 53 3 Message Errors 38 | . . . 2 2 . . . . . . . . . . . . . . . . . . . . . . . . . . . 19 1 11 3 Matter Fused 35 | . . . . 1 . . . . . . . . . . . . . . . . . . . . . . . . . . . 19 . 15 . Heat Flow Errors 16 | . . . 1 4 . . . . . . . . . . . . . . . . . . . . . . . . . . . 4 . 7 . Energy Discharges 15 | . . . . 3 . . . . . . . . . . . . . . . . . . . . . . . . . . . 8 . 4 . Parts Rejected 4 | . . . . . . . . . . . . . . . . . . . . . . . . . . . . . . . . 1 . 3 . Parts Fused 1 | . . . . . . . . . . . . . . . . . . . . . . . . . . . . . . . . . . 1 . Data Loss (minor) 18 | . . . . 1 . . . . . . . . . . . . . . . . . . . . . . . . . . . 9 . 8 . Data Loss (major) 5 | . . . . . . . . . . . . . . . . . . . . . . . . . . . . . . . . 1 . 4 . Alerts 3 | . . . . 2 . . . . . . . . . . . . . . . . . . . . . . . . . . . 1 . . . Weapon Failures 4 | . . . . 1 . . . . . . . . . . . . . . . . . . . . . . . . . . . 3 . . . Overload Shots . | . . . . . . . . . . . . . . . . . . . . . . . . . . . . . . . . . . . . Overflow Damage 4408 | . . . . . 382 . . . 64 . . . . . 6 134 . . . 72 30 . . . . 265 . . . 162 315 2254 . 406 318 Projectiles 39 | . . . . . . . . . . . . . . . . . . . . . . . . . . . . . . . . 39 . . . Explosions 660 | . . . . . 382 . . . . . . . . . 6 . . . . . 30 . . . . . . . . . . 133 . 109 . Melee 3709 | . . . . . . . . . 64 . . . . . . 134 . . . 72 . . . . . 265 . . . 162 315 2082 . 297 318 Knockbacks 23 | . . . . . . . 2 . . . . . . . . . . . . . . . . . . . . . . . . 21 . . . Impact 2 | . . . . . . . 2 . . . . . . . . . . . . . . . . . . . . . . . . . . . . Kinetic 21 | . . . . . . . . . . . . . . . . . . . . . . . . . . . . . . . . 21 . . . Secondary . | . . . . . . . . . . . . . . . . . . . . . . . . . . . . . . . . . . . . Self-Inflicted Damage 214 | . . . . . 91 . . . . . . . . . . . . . . . . . . . . . . . . . . 59 46 18 . Shots 8 | . . . . . 2 . . . . . . . . . . . . . . . . . . . . . . . . . . 2 3 1 . Rammed 30 | . 1 5 3 5 3 3 10 . . . . . . . . . . . . . . . . . . . . . . . . . . . . Targets Rammed 34 | 1 3 6 3 5 3 3 10 . . . . . . . . . . . . . . . . . . . . . . . . . . . . Kicked 3 | 1 2 . . . . . . . . . . . . . . . . . . . . . . . . . . . . . . . . . . Crushed 1 | . . 1 . . . . . . . . . . . . . . . . . . . . . . . . . . . . . . . . . Highest Temperature 350 | 60 330 108 176 350 72 344 . . 168 25 79 157 119 117 162 96 15 48 48 52 29 192 26 . . . . 10 104 82 72 94 . 204 22 Average Temperature 42 | 28 86 25 40 107 26 96 . . 20 7 20 72 57 38 36 18 6 12 16 25 11 31 10 . . . . 4 25 82 40 36 . 56 16 Received Heat Transfer 2847 | . 174 165 249 111 999 765 . . . . . 39 . . . 9 . . . . 18 . . . . . 9 . . . . 183 . 126 . Effects 6 | . . . . 5 . 1 . . . . . . . . . . . . . . . . . . . . . . . . . . . . . Energy Bleed 3 | . . . . 2 . 1 . . . . . . . . . . . . . . . . . . . . . . . . . . . . . Interference 2 | . . . . 2 . . . . . . . . . . . . . . . . . . . . . . . . . . . . . . . Short Circuit 1 | . . . . 1 . . . . . . . . . . . . . . . . . . . . . . . . . . . . . . . Siege Activations . | . . . . . . . . . . . . . . . . . . . . . . . . . . . . . . . . . . . . Martial Activations . | . . . . . . . . . . . . . . . . . . . . . . . . . . . . . . . . . . . . Shielding Activations . | . . . . . . . . . . . . . . . . . . . . . . . . . . . . . . . . . . . . Robots Disrupted . | . . . . . . . . . . . . . . . . . . . . . . . . . . . . . . . . . . . . Combat Hostiles . | . . . . . . . . . . . . . . . . . . . . . . . . . . . . . . . . . . . . Robots Corrupted 3 | . . . . . . 3 . . . . . . . . . . . . . . . . . . . . . . . . . . . . . Combat Hostiles 3 | . . . . . . 3 . . . . . . . . . . . . . . . . . . . . . . . . . . . . . Parts Fried 6 | . . . . . . 6 . . . . . . . . . . . . . . . . . . . . . . . . . . . . . Impact Corruptions . | . . . . . . . . . . . . . . . . . . . . . . . . . . . . . . . . . . . . Robots Melted . | . . . . . . . . . . . . . . . . . . . . . . . . . . . . . . . . . . . . Combat Hostiles . | . . . . . . . . . . . . . . . . . . . . . . . . . . . . . . . . . . . . Parts Melted 13 | . 3 . 2 . 1 7 . . . . . . . . . . . . . . . . . . . . . . . . . . . . . Heat Transferred 7781 | 148 2132 888 . . 800 2839 . . . . . . . . . . . . . . . . . . . . . . . . . 924 50 . . Parts Sabotaged . | . . . . . . . . . . . . . . . . . . . . . . . . . . . . . . . . . . . . Parts Stolen . | . . . . . . . . . . . . . . . . . . . . . . . . . . . . . . . . . . . . Parts Stripped . | . . . . . . . . . . . . . . . . . . . . . . . . . . . . . . . . . . . . Power Chain Reactions 3 | . . . . . 1 2 . . . . . . . . . . . . . . . . . . . . . . . . . . . . . Alert | -11 -10 -10 -9 -9 -8 -8 -8 -8 -6 -6 -6 -6 -6 -6 -5 -5 -5 -5 -5 -5 -5 -4 -4 -4 -4 -4 -3 -3 -3 -2 -2 -2 -1 -1 -1 ------- Run | Yrd Mat Min Mat Min Mat Sto Rec Scr Fac Was Fac Low Low Zio Pro Fac Was Fac Upp Upp War Pro Fac Upp Upp Zhi Pro Res Tes Res Qua Frg Acc Com Ac0 Maximum Alert Level 5 | . . . 1 . 2 4 2 . . . . . . . . . . . . . . . 2 . . . . . . . . 5 5 5 . Low Security (%) 42 | 100 100 100 55 100 37 2 17 . 100 100 100 . . . . 100 100 100 . . . . . . . . . 100 100 100 100 3 . . . Level 1 15 | . . . 44 . 40 22 54 . . . . . . . . . . . . . . . 6 . . . . . . . . 6 . . . Level 2 7 | . . . . . 21 6 28 . . . . . . . . . . . . . . . 93 . . . . . . . . 8 . . . Level 3 4 | . . . . . . 57 . . . . . . . . . . . . . . . . . . . . . . . . . 2 . . . Level 4 3 | . . . . . . 10 . . . . . . . . . . . . . . . . . . . . . . . . . 14 . . . Level 5 25 | . . . . . . . . . . . . . . . . . . . . . . . . . . . . . . . . 65 100 94 . High Security . | . . . . . . . . . . . . . . . . . . . . . . . . . . . . . . . . . . 5 . Max Security . | . . . . . . . . . . . . . . . . . . . . . . . . . . . . . . . . . . . . Peak Influence 4752 | 5 141 134 328 194 494 1167 502 . 77 2 30 . . . . 69 28 48 . . . . 454 . . . . 41 97 88 181 4752 3191 2484 . Initial 2849 | . . . 23 114 . 146 451 . . 2 . . . . . 44 9 . . . . . 450 . . . . . 1 41 39 87 2849 2041 . Average 653 | 1 75 34 163 93 248 711 318 . 15 1 3 . . . . 29 4 17 . . . . 424 . . . . 12 48 56 120 1994 3010 2381 . Influence Increases 14204 | 10 472 399 958 180 1241 1710 200 . 156 . 109 45 90 . 110 169 36 99 . 50 150 . 559 90 . 15 15 110 169 159 258 5543 432 575 95 Destroy 0b10 Robot/C 6580 | . 340 280 540 160 700 1040 60 . . . . . . . 100 . . . . . 40 . . 80 . . . . . . . 2720 120 400 . Destroy 0b10 Robot/NC 550 | 10 20 10 60 . 105 80 . . 10 . . . . . . 15 . . . 5 5 . . . . 15 . . 5 15 15 160 5 15 . Destroy Leader 1164 | . 66 40 188 20 176 254 . . 2 . . . . . 10 . . . . . . . . 10 . . . . 2 . 2 350 10 34 . Allied During Kill 351 | . . 33 59 . . 172 1 . . . . . . . . . . . . . . . . . . . . . . . . 86 . . . Successful Hack 621 | . 31 6 62 . 46 32 18 . 30 . 23 . . . . 22 . 53 . . . . 3 . . . . 44 10 . 100 69 72 . . Select Force Hacks 120 | . . . . . . . 120 . . . . . . . . . . . . . . . . . . . . . . . . . . . . Disable Machine 1110 | . . . 15 . 135 45 . . 30 . 15 . . . . . . 15 . . . . . . . . . 15 30 . 60 585 45 75 45 Destroy Structure 1203 | . . . 4 . 49 57 1 . 39 . 26 . . . . 42 36 16 . . . . 16 . . . . 36 32 84 66 508 105 51 35 Advance Influence 450 | . . . . . . . . . . . . . . . . . . . . . . . 450 . . . . . . . . . . . . Partial Spotted 465 | . . . . . . . . . . . 15 . . . . 45 . 15 . . . . 30 . . . . . 30 15 15 270 15 . 15 Lose Combat Pursuer 1590 | . 15 30 30 . 30 30 . . 45 . 30 45 90 . . 45 . . . 45 105 . 60 . . . 15 15 60 45 . 795 60 . . Influence Decreases 14204 | 10 472 338 725 474 894 900 1208 149 150 6 109 45 30 60 40 212 63 99 . 20 145 35 110 277 81 196 15 107 98 163 171 950 1991 1200 2661 Entered New Map 7599 | . . . 38 180 . 201 706 149 . 4 . . . 60 . 26 18 . . . 30 35 . 167 51 181 . . 2 33 31 70 1901 1150 2566 Time Decay 5605 | 10 442 328 607 294 534 559 502 . 150 2 108 40 30 . 30 186 9 89 . 20 115 . 110 110 30 15 15 84 86 110 140 760 80 10 . Lost Part 400 | . 30 10 . . 60 40 . . . . . 5 . . 10 . . . . . . . . . . . . . . 20 . 80 10 40 95 Lost Ally 276 | . . . 80 . . 100 . . . . . . . . . . 36 10 . . . . . . . . . . 10 . . 40 . . . Purge Threat 324 | . . . . . 300 . . . . . 1 . . . . . . . . . . . . . . . . 23 . . . . . . . Squads Dispatched 81 | . 2 1 2 . 3 13 . . 9 . 4 . . . . 6 . 3 . . . . 5 . . . . 5 3 4 3 12 2 4 . Investigation 29 | . . . . . 1 2 . . 5 . 3 . . . . 4 . 3 . . . . 3 . . . . 2 1 . . 5 . . . Extermination 17 | . . . . . . . . . 3 . 1 . . . . 1 . . . . . . 2 . . . . 2 2 2 2 1 1 . . Reinforcement 22 | . 2 . 2 . 2 3 . . 1 . . . . . . 1 . . . . . . . . . . . 1 . 2 1 6 1 . . Assault 10 | . . 1 . . . 5 . . . . . . . . . . . . . . . . . . . . . . . . . . . 4 . Garrison 3 | . . . . . . 3 . . . . . . . . . . . . . . . . . . . . . . . . . . . . . Intercept . | . . . . . . . . . . . . . . . . . . . . . . . . . . . . . . . . . . . . Searches Triggered . | . . . . . . . . . . . . . . . . . . . . . . . . . . . . . . . . . . . . Construction Impeded 4 | . . . . . . 2 . . . . . . . . . 1 . . . . . . . . . . . . . 1 . . . . . Haulers Reinforced . | . . . . . . . . . . . . . . . . . . . . . . . . . . . . . . . . . . . . Active Scanning Responses . | . . . . . . . . . . . . . . . . . . . . . . . . . . . . . . . . . . . . Cargo Convoy Interrupts . | . . . . . . . . . . . . . . . . . . . . . . . . . . . . . . . . . . . . Stealth | -11 -10 -10 -9 -9 -8 -8 -8 -8 -6 -6 -6 -6 -6 -6 -5 -5 -5 -5 -5 -5 -5 -4 -4 -4 -4 -4 -3 -3 -3 -2 -2 -2 -1 -1 -1 --------- Run | Yrd Mat Min Mat Min Mat Sto Rec Scr Fac Was Fac Low Low Zio Pro Fac Was Fac Upp Upp War Pro Fac Upp Upp Zhi Pro Res Tes Res Qua Frg Acc Com Ac0 Distress Signals 50 | . 3 . 6 . 2 2 . . . . . . . . . . . . . . 2 . . . . . . 1 . . . 11 2 21 . Communications Jammed . | . . . . . . . . . . . . . . . . . . . . . . . . . . . . . . . . . . . . Distress Signals . | . . . . . . . . . . . . . . . . . . . . . . . . . . . . . . . . . . . . Times Spotted 685 | . 35 16 42 7 50 70 . . 9 5 5 4 7 . 10 4 4 2 3 4 43 5 5 6 . . 2 5 7 8 3 261 15 23 25 Peak Tracking Total 13 | . 5 3 5 3 6 10 . . 4 5 2 3 5 . 5 2 3 1 3 4 10 2 6 5 . . 2 3 5 5 2 13 7 6 11 Tactical Retreats 53 | . 1 1 2 . 1 1 . . 2 . 2 2 3 . . 2 . . . 2 3 . 2 . . . 1 1 1 2 . 22 2 . . Traps | -11 -10 -10 -9 -9 -8 -8 -8 -8 -6 -6 -6 -6 -6 -6 -5 -5 -5 -5 -5 -5 -5 -4 -4 -4 -4 -4 -3 -3 -3 -2 -2 -2 -1 -1 -1 ------- Run | Yrd Mat Min Mat Min Mat Sto Rec Scr Fac Was Fac Low Low Zio Pro Fac Was Fac Upp Upp War Pro Fac Upp Upp Zhi Pro Res Tes Res Qua Frg Acc Com Ac0 Traps Triggered 29 | . . . 1 . 3 2 . . 1 . 1 . . . . 2 . . . . . . . . . . . . 1 1 3 12 2 . . Indirectly 1 | . . . . . . 1 . . . . . . . . . . . . . . . . . . . . . . . . . . . . . Trap Hack Attempts . | . . . . . . . . . . . . . . . . . . . . . . . . . . . . . . . . . . . . Triggered . | . . . . . . . . . . . . . . . . . . . . . . . . . . . . . . . . . . . . Disarmed . | . . . . . . . . . . . . . . . . . . . . . . . . . . . . . . . . . . . . Reprogrammed . | . . . . . . . . . . . . . . . . . . . . . . . . . . . . . . . . . . . . Reused . | . . . . . . . . . . . . . . . . . . . . . . . . . . . . . . . . . . . . Traps Extracted . | . . . . . . . . . . . . . . . . . . . . . . . . . . . . . . . . . . . . Installed . | . . . . . . . . . . . . . . . . . . . . . . . . . . . . . . . . . . . . Triggered . | . . . . . . . . . . . . . . . . . . . . . . . . . . . . . . . . . . . . Machines | -11 -10 -10 -9 -9 -8 -8 -8 -8 -6 -6 -6 -6 -6 -6 -5 -5 -5 -5 -5 -5 -5 -4 -4 -4 -4 -4 -3 -3 -3 -2 -2 -2 -1 -1 -1 ---------- Run | Yrd Mat Min Mat Min Mat Sto Rec Scr Fac Was Fac Low Low Zio Pro Fac Was Fac Upp Upp War Pro Fac Upp Upp Zhi Pro Res Tes Res Qua Frg Acc Com Ac0 Machines Disabled 78 | . . . 1 . 9 3 . . 2 . 1 . . . . . . 1 . . 1 . . . . . . 1 2 . 4 42 3 5 3 Max in Single Turn 9 | . . . 1 . 9 1 . . 1 . 1 . . . . . . 1 . . 1 . . . . . . 1 1 . 1 8 1 1 1 Garrison Access 6 | . . . . . 1 1 . . 1 . 1 . . . . . . . . . . . . . . . . . . 1 . 1 . . . Machines Repaired . | . . . . . . . . . . . . . . . . . . . . . . . . . . . . . . . . . . . . Machines Dismantled 1 | . . . . . . . . . . . . . . . . . . . . . 1 . . . . . . . . . . . . . . Machines Sabotaged . | . . . . . . . . . . . . . . . . . . . . . . . . . . . . . . . . . . . . Overloaded Fab Kills . | . . . . . . . . . . . . . . . . . . . . . . . . . . . . . . . . . . . . Hacking | -11 -10 -10 -9 -9 -8 -8 -8 -8 -6 -6 -6 -6 -6 -6 -5 -5 -5 -5 -5 -5 -5 -4 -4 -4 -4 -4 -3 -3 -3 -2 -2 -2 -1 -1 -1 --------- Run | Yrd Mat Min Mat Min Mat Sto Rec Scr Fac Was Fac Low Low Zio Pro Fac Was Fac Upp Upp War Pro Fac Upp Upp Zhi Pro Res Tes Res Qua Frg Acc Com Ac0 Machines Accessed 172 | . 7 1 13 1 16 13 11 3 15 . 14 . . . . 9 . 8 . 1 4 . 7 . 1 4 . 7 5 7 8 13 4 . . Terminals 102 | . 5 1 8 . 10 9 6 . 9 . 9 . . . . 3 . 5 . . . . 3 . . . . 4 4 6 7 9 4 . . Fabricators 4 | . . . . . . . . . 1 . . . . . . 1 . . . . . . 1 . . . . 1 . . . . . . . Repair Stations 6 | . 1 . 1 . 2 2 . . . . . . . . . . . . . . . . . . . . . . . . . . . . . Recycling Units 32 | . 1 . 2 . 2 1 5 . 3 . 3 . . . . 4 . 3 . . . . 3 . . . . 2 . . . 3 . . . Scanalyzers 4 | . . . 2 . 1 . . . . . . . . . . 1 . . . . . . . . . . . . . . . . . . . Garrison Access 10 | . . . . . 1 1 . . 2 . 2 . . . . . . . . . . . . . . . . . 1 1 1 1 . . . Total Hacks 427 | . 23 5 38 1 43 34 30 13 31 . 35 . . . . 21 . 13 . 1 4 . 18 . 1 17 . 21 12 15 18 27 6 . . Successful 239 | . 14 2 23 1 23 18 15 13 15 . 14 . . . . 14 . 9 . 1 4 . 10 . 1 17 . 7 5 7 10 13 3 . . Failed 188 | . 9 3 15 . 20 16 15 . 16 . 21 . . . . 7 . 4 . . . . 8 . . . . 14 7 8 8 14 3 . . Catastrophic 26 | . . 1 2 . 2 . 2 . 4 . 1 . . . . 2 . 1 . . . . 1 . . . . 3 1 2 2 1 1 . . Database Lockouts . | . . . . . . . . . . . . . . . . . . . . . . . . . . . . . . . . . . . . Manual 210 | . 18 5 18 . 21 11 19 . 23 . 17 . . . . 15 . 6 . . . . 9 . . . . 12 5 6 7 13 5 . . Terminals 272 | . 20 5 27 . 29 21 18 . 19 . 25 . . . . 12 . 7 . . . . 11 . . . . 16 9 14 15 18 6 . . Fabricators 6 | . . . . . . . . . 1 . . . . . . 2 . . . . . . 2 . . . . 1 . . . . . . . Repair Stations 15 | . 2 . 2 . 4 7 . . . . . . . . . . . . . . . . . . . . . . . . . . . . . Recycling Units 64 | . 1 . 3 . 4 2 12 . 8 . 5 . . . . 6 . 6 . . . . 5 . . . . 4 . . . 8 . . . Scanalyzers 11 | . . . 6 . 4 . . . . . . . . . . 1 . . . . . . . . . . . . . . . . . . . Garrison Access 22 | . . . . . 2 4 . . 3 . 5 . . . . . . . . . . . . . . . . . 3 1 3 1 . . . Terminal Hacks 104 | . 3 2 7 1 4 4 2 13 5 . 8 . . . . 2 . 3 . 1 4 . 3 . 1 17 . 5 2 5 5 6 1 . . Record 21 | . . . . . . . . 12 . . . . . . . . . . . . 3 . . . . 5 . . . . . 1 . . . Part Schematic 8 | . . . . . . . 2 . 1 . 1 . . . . . . . . . . . . . . 4 . . . . . . . . . Robot Analysis 8 | . 1 2 1 . . . . . . . . . . . . . . . . . . . . . . 4 . . . . . . . . . Prototype ID Bank 4 | . . . . . . . . . . . . . . . . . . . . . . . . . . 4 . . . . . . . . . Open Door 8 | . . . . 1 . 4 . . . . . . . . . . . . . 1 1 . . . 1 . . . . . . . . . . Branch Access Points 6 | . . . . . . . . . . . 1 . . . . 1 . 1 . . . . 1 . . . . 1 . 1 . . . . . Terminal Index 2 | . . . . . . . . . . . . . . . . . . 1 . . . . . . . . . . . . . . 1 . . Unreport Threat 4 | . . . . . 2 . . . . . 1 . . . . . . . . . . . . . . . . 1 . . . . . . . Locate Traps 15 | . 1 . 4 . 1 . . . . . 2 . . . . . . 1 . . . . 2 . . . . 1 . . 1 2 . . . Recall Extermination 3 | . . . . . . . . . . . 1 . . . . . . . . . . . . . . . . . . 1 1 . . . . Hauler Manifests 3 | . 1 . 1 . 1 . . . . . . . . . . . . . . . . . . . . . . . . . . . . . . Registered Components 4 | . . . 1 . . . . . 1 . . . . . . 1 . . . . . . . . . . . 1 . . . . . . . Zone Layout 17 | . . . . . . . . . 3 . 2 . . . . . . . . . . . . . . . . 1 2 3 3 3 . . . Proto ID Catalog 1 | . . . . . . . . 1 . . . . . . . . . . . . . . . . . . . . . . . . . . . Fabricator Hacks 3 | . . . . . . . . . 1 . . . . . . 1 . . . . . . 1 . . . . . . . . . . . . Network Status 3 | . . . . . . . . . 1 . . . . . . 1 . . . . . . 1 . . . . . . . . . . . . Repair Station Hacks 12 | . 2 . . . 4 6 . . . . . . . . . . . . . . . . . . . . . . . . . . . . . Scan Component 6 | . 1 . . . 2 3 . . . . . . . . . . . . . . . . . . . . . . . . . . . . . Repair 6 | . 1 . . . 2 3 . . . . . . . . . . . . . . . . . . . . . . . . . . . . . Recycling Unit Hacks 12 | . 1 . 2 . 2 1 2 . 1 . . . . . . 1 . 1 . . . . 1 . . . . . . . . . . . . Retrieve Components 12 | . 1 . 2 . 2 1 2 . 1 . . . . . . 1 . 1 . . . . 1 . . . . . . . . . . . . Scanalyzer 11 | . . . 6 . 4 . . . . . . . . . . 1 . . . . . . . . . . . . . . . . . . . Insert Component 5 | . . . 2 . 2 . . . . . . . . . . 1 . . . . . . . . . . . . . . . . . . . Analyze 6 | . . . 4 . 2 . . . . . . . . . . . . . . . . . . . . . . . . . . . . . . Garrison Access Hacks 6 | . . . . . 1 1 . . 1 . 1 . . . . . . . . . . . . . . . . . . 1 . 1 . . . Seal Access 6 | . . . . . 1 1 . . 1 . 1 . . . . . . . . . . . . . . . . . . 1 . 1 . . . Unauthorized Hacks 91 | . 8 . 8 . 8 6 11 . 7 . 5 . . . . 9 . 5 . . . . 5 . . . . 2 3 1 5 6 2 . . Terminals 67 | . 8 . 8 . 8 6 7 . 5 . 2 . . . . 4 . 2 . . . . 2 . . . . 1 3 1 5 3 2 . . Track 4 | . . . . . . . . . . . . . . . . . . . . . . . . . . . . . 1 . 2 1 . . . Assimilate 8 | . . . . . . . . . 3 . . . . . . . . 2 . . . . . . . . . 1 1 . 1 . . . . Botnet 26 | . 3 . 2 . 2 2 2 . 2 . 2 . . . . 2 . . . . . . 2 . . . . . 1 1 1 2 2 . . Disrupt 1 | . . . . . . . . . . . . . . . . . . . . . . . . . . . . . . . 1 . . . . Skim 28 | . 5 . 6 . 6 4 5 . . . . . . . . 2 . . . . . . . . . . . . . . . . . . . Fabricators 1 | . . . . . . . . . . . . . . . . 1 . . . . . . . . . . . . . . . . . . . Fabnet 1 | . . . . . . . . . . . . . . . . 1 . . . . . . . . . . . . . . . . . . . Repair Stations . | . . . . . . . . . . . . . . . . . . . . . . . . . . . . . . . . . . . . Recycling Units 23 | . . . . . . . 4 . 2 . 3 . . . . 4 . 3 . . . . 3 . . . . 1 . . . 3 . . . Tunnel 4 | . . . . . . . 4 . . . . . . . . . . . . . . . . . . . . . . . . . . . . Fedlink 17 | . . . . . . . . . 2 . 3 . . . . 4 . 3 . . . . 3 . . . . 1 . . . 1 . . . Scraphulk 2 | . . . . . . . . . . . . . . . . . . . . . . . . . . . . . . . . 2 . . . Scanalyzers . | . . . . . . . . . . . . . . . . . . . . . . . . . . . . . . . . . . . . Garrison Access . | . . . . . . . . . . . . . . . . . . . . . . . . . . . . . . . . . . . . Data Cores Recovered 1 | . . . . . . . . . 1 . . . . . . . . . . . . . . . . . . . . . . . . . . Used . | . . . . . . . . . . . . . . . . . . . . . . . . . . . . . . . . . . . . Hacking Detections 123 | . 6 1 11 . 12 10 9 . 11 . 11 . . . . 5 . 4 . . . . 4 . . . . 6 4 6 8 11 4 . . Full Trace Events 7 | . . . . . 1 1 1 . 3 . . . . . . . . . . . . . . . . . . 1 . . . . . . . Feedback Events . | . . . . . . . . . . . . . . . . . . . . . . . . . . . . . . . . . . . . Feedback Blocked . | . . . . . . . . . . . . . . . . . . . . . . . . . . . . . . . . . . . . Robot Schematics Acquired 5 | . . . . . . . . . . . . . . 3 . . . . . . . . . . . . . . . . . 2 . . . Robots Built . | . . . . . . . . . . . . . . . . . . . . . . . . . . . . . . . . . . . . Authchips . | . . . . . . . . . . . . . . . . . . . . . . . . . . . . . . . . . . . . Time . | . . . . . . . . . . . . . . . . . . . . . . . . . . . . . . . . . . . . Total Robot Build Rating . | . . . . . . . . . . . . . . . . . . . . . . . . . . . . . . . . . . . . Part Schematics Acquired 33 | . . . 2 . 2 . 2 . 1 . 1 . . 14 . . . . . . . . . . . 4 . . . . . 7 . . . Parts Built . | . . . . . . . . . . . . . . . . . . . . . . . . . . . . . . . . . . . . Authchips . | . . . . . . . . . . . . . . . . . . . . . . . . . . . . . . . . . . . . Time . | . . . . . . . . . . . . . . . . . . . . . . . . . . . . . . . . . . . . Total Part Build Rating . | . . . . . . . . . . . . . . . . . . . . . . . . . . . . . . . . . . . . Parts Repaired 6 | . 1 . . . 2 3 . . . . . . . . . . . . . . . . . . . . . . . . . . . . . Time 208 | . 26 . . . 64 118 . . . . . . . . . . . . . . . . . . . . . . . . . . . . . Parts Recycled . | . . . . . . . . . . . . . . . . . . . . . . . . . . . . . . . . . . . . Recycled Matter . | . . . . . . . . . . . . . . . . . . . . . . . . . . . . . . . . . . . . Retrieved Matter . | . . . . . . . . . . . . . . . . . . . . . . . . . . . . . . . . . . . . Retrieved Components 50 | . 3 . . . 17 10 12 . 3 . . . . . . 2 . 1 . . . . 2 . . . . . . . . . . . . Parts Scanalyzed 4 | . . . 2 . 2 . . . . . . . . . . . . . . . . . . . . . . . . . . . . . . Part Schematics Acquired 4 | . . . 2 . 2 . . . . . . . . . . . . . . . . . . . . . . . . . . . . . . Parts Damaged . | . . . . . . . . . . . . . . . . . . . . . . . . . . . . . . . . . . . . Bothacking | -11 -10 -10 -9 -9 -8 -8 -8 -8 -6 -6 -6 -6 -6 -6 -5 -5 -5 -5 -5 -5 -5 -4 -4 -4 -4 -4 -3 -3 -3 -2 -2 -2 -1 -1 -1 ------------ Run | Yrd Mat Min Mat Min Mat Sto Rec Scr Fac Was Fac Low Low Zio Pro Fac Was Fac Upp Upp War Pro Fac Upp Upp Zhi Pro Res Tes Res Qua Frg Acc Com Ac0 Used RIF Installer . | . . . . . . . . . . . . . . . . . . . . . . . . . . . . . . . . . . . . Robots Hacked 2 | . . . . . . . . . 2 . . . . . . . . . . . . . . . . . . . . . . . . . . Non-combat 2 | . . . . . . . . . 2 . . . . . . . . . . . . . . . . . . . . . . . . . . Combat . | . . . . . . . . . . . . . . . . . . . . . . . . . . . . . . . . . . . . Robot Hacks Applied 2 | . . . . . . . . . 2 . . . . . . . . . . . . . . . . . . . . . . . . . . find_chute 2 | . . . . . . . . . 2 . . . . . . . . . . . . . . . . . . . . . . . . . . Relay Couplers Released . | . . . . . . . . . . . . . . . . . . . . . . . . . . . . . . . . . . . . Fabnet Peak Effective % 3 | . . . . . . . . . . . . . . . . . . . . . . 3 3 3 3 3 1 1 1 . . . . . . Robots Rewired . | . . . . . . . . . . . . . . . . . . . . . . . . . . . . . . . . . . . . Allies Hacked 1 | . . . . . . . . . . . . . . . . . . 1 . . . . . . . . . . . . . . . . . Hacks Repelled . | . . . . . . . . . . . . . . . . . . . . . . . . . . . . . . . . . . . . Allies | -11 -10 -10 -9 -9 -8 -8 -8 -8 -6 -6 -6 -6 -6 -6 -5 -5 -5 -5 -5 -5 -5 -4 -4 -4 -4 -4 -3 -3 -3 -2 -2 -2 -1 -1 -1 -------- Run | Yrd Mat Min Mat Min Mat Sto Rec Scr Fac Was Fac Low Low Zio Pro Fac Was Fac Upp Upp War Pro Fac Upp Upp Zhi Pro Res Tes Res Qua Frg Acc Com Ac0 Total Allies 40 | . . 4 . . . 12 . . 1 . . . . . . . 19 1 . . . . . . . . . . 1 . . 2 . . . Largest Group 19 | . . 4 4 . . 10 1 . 1 1 . . . . . . 19 1 . . . . . . . . . . 1 . . 2 . . . Highest-Rated Group 687 | . . 71 71 . . 173 13 . 10 10 . . . . . . 687 26 . . . . . . . . . . 26 . . 278 . . . Highest-Rated Ally 139 | . . 31 31 . . 31 13 . 10 10 . . . . . . 50 26 . . . . . . . . . . 26 . . 139 . . . Total Orders . | . . . . . . . . . . . . . . . . . . . . . . . . . . . . . . . . . . . . Ally Attacks 310 | . . 16 42 . . 100 . . . . . . . . . . 109 . . . . . . . . . . . . . . 43 . . . Total Damage 8116 | . . 255 450 . . 1216 . . . . . . . . . . 3888 . . . . . . . . . . . . . . 2307 . . . Kills 43 | . . 5 5 . . 15 . . . . . . . . . . 9 . . . . . . . . . . . . . . 9 . . . Allies Corrupted 1 | . . . . . . . . . . . . . . . . . . 1 . . . . . . . . . . . . . . . . . Allies Melted 5 | . . . . . . . . . . . . . . . . . . . . . 1 . . . . . . . . . . 4 . . . Intel | -11 -10 -10 -9 -9 -8 -8 -8 -8 -6 -6 -6 -6 -6 -6 -5 -5 -5 -5 -5 -5 -5 -4 -4 -4 -4 -4 -3 -3 -3 -2 -2 -2 -1 -1 -1 ------- Run | Yrd Mat Min Mat Min Mat Sto Rec Scr Fac Was Fac Low Low Zio Pro Fac Was Fac Upp Upp War Pro Fac Upp Upp Zhi Pro Res Tes Res Qua Frg Acc Com Ac0 Active Infowar (turns) 15050 | 18 1333 45 . . . . . 352 665 33 702 117 79 252 210 425 76 208 144 143 999 194 238 229 77 64 181 237 185 232 286 4182 173 2628 343 Optics 11244 | . . . . . . . . . . . . . . . . 425 76 208 144 143 999 194 238 229 77 64 181 237 185 232 286 4182 173 2628 343 Sensors 6366 | . . . . . . . . 352 665 33 702 96 79 252 210 425 76 208 144 143 192 180 238 229 77 64 181 234 185 232 286 883 . . . Terrain 67 | . . . . . . . . . . . . . . . . . . . . . . . . . . . . . . . . . . . 67 Structural 4839 | . . . . . . . . . 663 33 702 105 . . . 197 76 208 144 143 228 181 237 229 77 64 181 234 181 128 286 542 . . . Seismic 1396 | 18 1333 45 . . . . . . . . . . . . . . . . . . . . . . . . . . . . . . . . . Cloaking 988 | . . . . . . . . . . . . . . . . . . . . . . . . . . . . . . . . 795 163 30 . ECM 49 | . . . . . . . . . 23 . . . . . . . . . . . 7 2 . . . 17 . . . . . . . . . Robot Analysis Total 8 | . 1 2 1 . . . . . . . . . . . . . . . . . . . . . . 4 . . . . . . . . . Derelict Logs Recovered 12 | . . 2 . 1 . . . . . . . 1 . 1 1 . . . 1 1 . 3 . 1 . . . . . . . . . . . Drone Launches . | . . . . . . . . . . . . . . . . . . . . . . . . . . . . . . . . . . . . Drone Recoveries . | . . . . . . . . . . . . . . . . . . . . . . . . . . . . . . . . . . . . Exploration | -11 -10 -10 -9 -9 -8 -8 -8 -8 -6 -6 -6 -6 -6 -6 -5 -5 -5 -5 -5 -5 -5 -4 -4 -4 -4 -4 -3 -3 -3 -2 -2 -2 -1 -1 -1 ------------- Run | Yrd Mat Min Mat Min Mat Sto Rec Scr Fac Was Fac Low Low Zio Pro Fac Was Fac Upp Upp War Pro Fac Upp Upp Zhi Pro Res Tes Res Qua Frg Acc Com Ac0 Turns Passed 26575 | 110 1333 1325 2016 765 2230 1640 1357 2479 665 33 702 120 79 252 225 425 76 208 144 143 999 194 238 229 77 64 181 237 185 232 286 4182 173 2628 343 Spaces Moved 29572 | 61 427 750 862 427 1041 667 825 1670 1758 109 1364 394 230 893 367 1126 155 484 381 342 1278 490 632 396 226 194 376 762 545 798 984 6094 370 1628 466 Core 15 | 15 . . . . . . . . . . . . . . . . . . . . . . . . . . . . . . . . . . . Treads 6014 | . 135 750 862 427 1041 667 825 1307 . . . . . . . . . . . . . . . . . . . . . . . . . . . Legs 338 | 46 292 . . . . . . . . . . . . . . . . . . . . . . . . . . . . . . . . . . Wheels . | . . . . . . . . . . . . . . . . . . . . . . . . . . . . . . . . . . . . Hover 3306 | . . . . . . . . . . . . . . . . . . . . . . . . . . . . . . . . 842 370 1628 466 Flight 19899 | . . . . . . . . 363 1758 109 1364 394 230 893 367 1126 155 484 381 342 1278 490 632 396 226 194 376 762 545 798 984 5252 . . . Fastest Speed 7 | 50 120 160 160 160 160 156 161 26 23 17 23 17 17 23 17 23 23 23 23 23 20 14 14 20 20 20 20 15 8 7 7 7 33 30 30 Average Speed 52 | 118 132 160 193 160 160 162 161 146 23 22 23 22 22 23 22 23 23 23 23 23 21 22 19 20 20 20 20 16 14 11 11 15 33 31 36 Slowest Speed 240 | 200 160 160 240 160 160 240 161 161 23 23 23 23 23 23 23 94 23 23 23 23 23 23 20 20 20 20 20 20 15 12 12 200 33 104 96 Overloaded Moves 390 | . . . . . . . . . . 4 . 38 16 . 7 . . . . . . 5 20 . . . . . 26 27 39 208 . . . Propulsion Burnouts 1 | . . . . . . . . . . . . . . . . . . . . . . . . . . . . . . . . 1 . . . Robots Hopped 92 | . . . . . . . . . 3 . 6 2 1 . . 7 . 1 . . 5 . 1 . . . . 8 3 8 11 36 . . . Potential Cave-ins 8 | . . . . . . . . . . . . . . . . . . . . . . 2 . . . . 3 3 . . . . . . . Cave-ins Triggered . | . . . . . . . . . . . . . . . . . . . . . . . . . . . . . . . . . . . . Teleports 3 | . . . . . . . . . . . . . . . . . . . . . . . . . . . . . . . 1 1 . 1 . Exploration Rate (%) 60 | 5 76 98 85 92 92 91 99 94 55 71 41 59 49 85 47 32 88 18 71 57 92 59 17 51 41 63 52 28 58 29 83 85 18 53 34 Regions Visited 35 Branch Regions 22 Pre-discovered Areas 17 | . . 1 3 . 1 . 5 . 1 . . . . 1 . . . . . . . 1 . 1 . 3 . . . . . . . . . Known Exits Taken 26 | . . 1 1 1 1 1 1 1 . . 1 1 1 1 1 . . 1 1 1 1 1 1 1 1 1 1 1 1 1 1 . . . . Unknown Exits Taken 5 | 1 1 . . . . . . . . . . . . . . . . . . . . . . . . . . . . . . 1 1 1 . Scrap Searched 28 | . . 1 . 3 . . . 10 . . . . 2 2 2 . . . 2 2 . 1 . 1 1 . 1 . . . . . . . . Spaces Dug 380 | . . . . . . 10 . . 43 . 26 5 7 . 32 21 . 8 4 8 10 7 8 4 1 . 18 22 12 28 24 42 31 . 9 Terrain Destroyed 659 | . . . . . 51 51 . . 43 . 26 5 7 . 77 21 . 8 4 8 25 7 8 44 1 . 18 22 12 28 24 96 44 20 9 Melee 215 | . . . . . . . . . 35 . 23 5 5 . 12 17 . 6 2 4 10 2 8 1 1 . 8 15 6 24 14 16 . . 1 Projectile 173 | . . . . . . . . . 8 . 3 . 2 . 9 4 . 2 2 4 . 5 . 3 . . 10 7 6 4 10 52 34 . 8 AOE 244 | . . . . . 51 51 . . . . . . . . 56 . . . . . 15 . . 40 . . . . . . . 1 10 20 . Terrain Rammed . | . . . . . . . . . . . . . . . . . . . . . . . . . . . . . . . . . . . . Walls Destroyed . | . . . . . . . . . . . . . . . . . . . . . . . . . . . . . . . . . . . . Machines Disabled . | . . . . . . . . . . . . . . . . . . . . . . . . . . . . . . . . . . . . Actions | -11 -10 -10 -9 -9 -8 -8 -8 -8 -6 -6 -6 -6 -6 -6 -5 -5 -5 -5 -5 -5 -5 -4 -4 -4 -4 -4 -3 -3 -3 -2 -2 -2 -1 -1 -1 --------- Run | Yrd Mat Min Mat Min Mat Sto Rec Scr Fac Was Fac Low Low Zio Pro Fac Was Fac Upp Upp War Pro Fac Upp Upp Zhi Pro Res Tes Res Qua Frg Acc Com Ac0 Total 38591 | 82 1040 811 1041 472 1360 1023 845 1709 1945 116 1708 414 246 936 465 1231 195 564 431 388 1949 548 726 536 254 207 457 835 628 876 1085 8810 397 3687 574 Wait 6446 | 2 504 4 22 18 127 171 8 1 98 8 298 16 6 37 57 57 39 62 41 28 606 39 84 129 28 . 54 31 44 31 20 1846 1 1923 6 Move 29373 | 60 426 749 861 426 1040 666 824 1669 1752 108 1351 390 227 892 366 1112 154 481 380 341 1270 489 629 395 225 193 375 746 538 782 961 6033 369 1627 466 Hop 74 | . . . . . . . . . 3 . 6 1 1 . . 7 . 1 . . 2 . 1 . . . . 7 3 7 11 24 . . . Pick Up 179 | 4 11 4 21 3 15 9 . 11 8 . 5 . . . . 5 1 1 . . 4 . 1 . . 2 . 5 3 1 7 51 . 7 . Fast Attach 157 | 7 3 3 19 . 20 22 . . 5 . 3 . 1 3 1 6 . 2 1 . 10 . . . . 3 . 3 8 1 2 19 . 13 2 Attach 173 | . 4 1 2 1 7 5 . 10 8 . 3 . 2 . 5 5 . 2 2 4 4 2 2 2 . . 4 7 3 7 3 62 2 4 10 Detach 115 | . . 1 . . 1 3 . 2 5 . 3 . 2 . 5 3 . 2 2 4 6 2 . 2 . . 4 6 3 4 1 51 . 3 . Swap 171 | 1 3 6 5 . 9 15 . 1 2 . 4 2 . . 2 1 . 1 . . 4 2 1 . . . . 1 1 . 17 62 5 16 10 Drop 224 | . 4 5 30 3 24 20 . 15 10 . 8 . . 3 . 6 1 3 1 . 13 . . . . 3 . 4 10 . 4 47 . 9 1 Fire 944 | 7 82 32 78 16 114 106 3 . 8 . 3 . 2 . 15 4 . 2 2 4 7 5 . 7 . . 10 7 6 4 10 377 20 8 5 Melee 479 | . . . . . . 1 . . 46 . 24 5 5 1 14 25 . 7 2 7 15 9 8 1 1 6 10 18 9 31 23 60 . 77 74 Ram . | . . . . . . . . . . . . . . . . . . . . . . . . . . . . . . . . . . . . Kick 3 | 1 2 . . . . . . . . . . . . . . . . . . . . . . . . . . . . . . . . . . Crush 31 | . 1 6 3 5 3 3 10 . . . . . . . . . . . . . . . . . . . . . . . . . . . . Escape Stasis 212 | . . . . . . . . . . . . . . . . . . . . . . . . . . . . . . 8 26 178 . . . Rewire 2 | . . . . . . 2 . . . . . . . . . . . . . . . . . . . . . . . . . . . . . Trap . | . . . . . . . . . . . . . . . . . . . . . . . . . . . . . . . . . . . . Miscellaneous 8 | . . . . . . . . . . . . . . . . . . . . . 8 . . . . . . . . . . . . . . Route ------- -11/Scrapyard -10/Materials (discovered 5 exits: *Mat x3 / *Min / Sub) -10/Mines (discovered 4 exits: *Mat x2 / [*Exi] / *Sub) -9/Materials (discovered 5 exits: *Mat x3 / *Min x2) -9/Mines (discovered 2 exits: *Mat x2) -8/Materials (discovered 5 exits: *Fac x3 / *Sto x2) -8/Storage (discovered 2 exits: *Fac / *Rec) -8/Recycling (discovered 2 exits: *Fac / *Scr) -8/Scraptown (discovered 2 exits: *Fac x2) -6/Factory (discovered 5 exits: *Fac x2 / *Low x2 / Ext) -6/Waste -6/Factory (discovered 6 exits: *Fac x2 / *Low x2 / Ext x2) -6/Lower Caves -6/Lower Caves (discovered 2 exits: Fac / *Zio) -6/Zion -5/Proximity Caves -5/Factory (discovered 3 exits: *Fac / Upp x2) -5/Waste -5/Factory (discovered 2 exits: *Upp x2) -5/Upper Caves -5/Upper Caves (discovered 2 exits: *Fac / *War) -5/Warlord -4/Proximity Caves -4/Factory (discovered 3 exits: *Upp x2 / Arm) -4/Upper Caves -4/Upper Caves -4/Zhirov -3/Proximity Caves -3/Research (discovered 4 exits: *Res x2 / *Tes x2) -3/Testing -2/Research (discovered 3 exits: *Acc / *Qua x2) -2/Quarantine (discovered 3 exits: *Acc / [*Sec] / *Frg) -2/Protoforge -1/Access -1/Command (discovered 3 exits: [*Sur x2] / [*Ac0]) -1/Access_0 History --------- Turn | Location | Event 14 | -11/Scrapyard | Discovered new exit (range 16) 111 | -11/Scrapyard | Entered Materials 314 | -10/Materials | Build established: Mutant 445 | -10/Materials | Repaired Med. Laser 464 | -10/Materials | Discovered new exit (range 9) 521 | -10/Materials | Discovered new exit (range 14) 853 | -10/Materials | Discovered new exit (range 7) 960 | -10/Materials | Identified exit to Materials 1109 | -10/Materials | Identified exit to Subcaves 1109 | -10/Materials | Learned location of 1 exit from Materials 1215 | -10/Materials | Learned location of 1 exit from Recycling 1303 | -10/Materials | Loaded intel: 15 trap records 1431 | -10/Materials | Learned location of 2 exits from Subcaves 1444 | -10/Materials | Entered Mines 1508 | -10/Mines | Joined a pair of Derelicts in attacking an 0b10 outpost 1549 | -10/Mines | Met a Derelict testing a Signal Generator 1702 | -10/Mines | Core integrity fell below 50% 1767 | -10/Mines | Learned location of Mines (-9) 1941 | -10/Mines | Found a hidden stash of uninstalled traps 2136 | -10/Mines | Deemed a non-threat by the Exiles lab entrance 2138 | -10/Mines | Discovered new exit (range 5) 2215 | -10/Mines | Assisted by bots powering up and referring to "LRC-V3" 2762 | -10/Mines | Discovered exit to Subcaves (range 6) 2769 | -10/Mines | Entered Materials 2769 | -9/Materials | Accompanied by 4 allies 2769 | -9/Materials | Evolved 2 slots: Propulsion x1, Weapon x1 2770 | -9/Materials | Identified exit to Materials 2770 | -9/Materials | Identified exit to Mines 3068 | -9/Materials | Build established: Scavenger-Tank 3502 | -9/Materials | Build established: Tank 4083 | -9/Materials | Learned Storage stockpile data 4141 | -9/Materials | Learned Storage stockpile data 4188 | -9/Materials | Learned location of 1 exit from Recycling 4224 | -9/Materials | Learned location of Zion (-6) 4785 | -9/Materials | Entered Mines 5001 | -9/Mines | Met a Derelict who couldn't figure out how to use a Trap Extractor 5064 | -9/Mines | Received a Rocket Launcher from a helpful Derelict 5113 | -9/Mines | Learned Materials terminal intel 5417 | -9/Mines | A weapon hastily lodged in a ceiling crevice suddenly fell to the ground 5550 | -9/Mines | Entered Materials 5550 | -8/Materials | Evolved 2 slots: Propulsion x1, Utility x1 5551 | -8/Materials | Identified exit to Factory 5552 | -8/Materials | Loaded intel: 12 terminal locations 5807 | -8/Materials | Discovered new exit (range 10) 5856 | -8/Materials | Build established: Scavenger-Tank 6848 | -8/Materials | Discovered exit to Factory (range 16) 6958 | -8/Materials | Learned Factory emergency access door positions 7108 | -8/Materials | Learned Factory trap positions 7218 | -8/Materials | Lost 4 parts (1n1u2w) 7219 | -8/Materials | Identified exit to Storage 7261 | -8/Materials | Learned Storage garrison access intel 7313 | -8/Materials | Learned location of 1 exit from Storage 7375 | -8/Materials | Learned Factory garrison access intel 7478 | -8/Materials | Repaired Hvy. Assault Rifle 7532 | -8/Materials | Repaired Hvy. Assault Rifle 7780 | -8/Materials | Entered Storage 7781 | -8/Storage | Identified exit to Recycling 7782 | -8/Storage | Loaded intel: 1 garrison access location 7984 | -8/Storage | Lost 4 parts (1p1n1u1w) 8129 | -8/Storage | Met a pair of Derelict thieves 8190 | -8/Storage | Garrison activated, responded to threat 8455 | -8/Storage | Assisted by bots powering up and referring to "LRC-V3" 8543 | -8/Storage | Lost 4 allies 8569 | -8/Storage | Repaired Hrd. Light Armor Plating 8631 | -8/Storage | Repaired Adv. Beam Rifle 8851 | -8/Storage | Repaired Lrg. Storage Unit 8938 | -8/Storage | Build established: Commander-Tank 8980 | -8/Storage | First assault squad dispatched 9040 | -8/Storage | Destroyed 7 combat bots 9041 | -8/Storage | Lost 3 allies 9119 | -8/Storage | Discovered exit to Factory (range 5) 9329 | -8/Storage | Build established: Tank 9408 | -8/Storage | Used back door to open Recycling access 9420 | -8/Storage | Entered Recycling 9420 | -8/Recycling | Accompanied by 1 ally 9421 | -8/Recycling | Identified exit to Scraptown 9421 | -8/Recycling | Identified exit to Factory 10274 | -8/Recycling | Learned Storage stockpile data 10344 | -8/Recycling | Learned location of 2 exits from Lower Caves 10402 | -8/Recycling | Learned Factory stockpile data 10483 | -8/Recycling | Learned Factory emergency access door positions 10506 | -8/Recycling | Learned location of Lower Caves (-6) 10520 | -8/Recycling | Learned Factory stockpile data 10580 | -8/Recycling | Learned Factory emergency access door positions 10628 | -8/Recycling | Learned Storage emergency access door positions 10687 | -8/Recycling | Learned location of 1 exit from Extension 10739 | -8/Recycling | Scanned before Scraplab entrance 10761 | -8/Recycling | Entered Scraplab 10777 | -8/Recycling | Entered Scraptown 11069 | -8/Scraptown | Heard Great Nut preacher, LISTEN AND RECITE! 11302 | -8/Scraptown | Discovered exit to Factory (range 5) 11420 | -8/Scraptown | Visited Cyclists 11473 | -8/Scraptown | Visited Bundlers 11785 | -8/Scraptown | Visited IN-MT5's Study 11832 | -8/Scraptown | Visited Red Mages 11949 | -8/Scraptown | Visited Shadow of the Wyrm 11978 | -8/Scraptown | Visited Fellowship of the Rings 12023 | -8/Scraptown | Visited UFD Registry 12023 | -8/Scraptown | Registered with UFD as "Slugchip" 12075 | -8/Scraptown | Visited Science Guys 12134 | -8/Scraptown | Visited Chapter 10 12194 | -8/Scraptown | Visited Scrapoid Research Area 12321 | -8/Scraptown | Discovered exit to Factory (range 5) 12371 | -8/Scraptown | Visited Scrap Suit Storage 12395 | -8/Scraptown | Visited Infowarlord's Domain 12418 | -8/Scraptown | Found Exp. Sensor Array 12446 | -8/Scraptown | Visited Supply Room 12480 | -8/Scraptown | Visited Derelict Rescue Squad 12491 | -8/Scraptown | Found DRS Beacon 12518 | -8/Scraptown | Visited Junk Repository 12570 | -8/Scraptown | Visited Supply Room 12617 | -8/Scraptown | Visited Junk Repository 12716 | -8/Scraptown | Build established: Scavenger-Mutant 13084 | -8/Scraptown | Entered Cyclist Reading Room 13200 | -8/Scraptown | Met Optimus 13200 | -8/Scraptown | Accepted into 0bPrime 13204 | -8/Scraptown | Build established: Mutant 13256 | -8/Scraptown | Entered Factory 13256 | -6/Factory | Evolved 4 slots: Propulsion x1, Utility x3 13257 | -6/Factory | Identified exit to Extension 13258 | -6/Factory | Loaded intel: 114 trap records 13261 | -6/Factory | Loaded intel: 4 garrison access locations 13348 | -6/Factory | Discovered new exit (range 10) 13350 | -6/Factory | Identified exit to Lower Caves 13403 | -6/Factory | Discovered exit to Lower Caves (range 18) 13438 | -6/Factory | Discovered new exit (range 15) 13528 | -6/Factory | Identified exit to Factory 13642 | -6/Factory | Loaded intel: 8 recycling unit locations 13698 | -6/Factory | Learned location of Protoforge (-2) 13762 | -6/Factory | Discovered exit to Factory (range 3) 13774 | -6/Factory | Spotted B-75 Beast 13824 | -6/Factory | Build established: Scout 13921 | -6/Factory | Manually triggered Chute Trap 13921 | -6/Factory | Sucked down chute 13921 | -6/Factory | Entered Waste 13926 | -6/Waste | 1 allies followed down the chute 13926 | -6/Waste | Spotted C-40 Crusher 13926 | -6/Waste | Spotted C-40 Crusher 13926 | -6/Waste | Spotted C-40 Crusher 13936 | -6/Waste | Spotted C-40 Crusher 13936 | -6/Waste | Spotted C-40 Crusher 13937 | -6/Waste | Spotted C-40 Crusher 13942 | -6/Waste | Discovered new exit (range 11) 13954 | -6/Waste | Identified exit to Factory 13954 | -6/Waste | Entered Factory 13960 | -6/Factory | Loaded intel: 8 recycling unit locations 14468 | -6/Factory | Discovered exit to Factory (range 14) 14530 | -6/Factory | Discovered exit to Factory (range 13) 14656 | -6/Factory | Entered Lower Caves 14657 | -6/Lower Caves | Identified exit to Lower Caves 14658 | -6/Lower Caves | Attracted the attention of an 0b10 checkpoint 14666 | -6/Lower Caves | Encountered a Warlord checkpoint 14729 | -6/Lower Caves | Spotted B-75 Beast 14776 | -6/Lower Caves | Entered another Lower Caves area 14784 | -6/Lower Caves | Encountered a Warlord checkpoint 14847 | -6/Lower Caves | Discovered new exit (range 3) 14852 | -6/Lower Caves | Found Alien Artifact 14852 | -6/Lower Caves | Identified Core Expander 14852 | -6/Lower Caves | Installed Core Expander, added new Propulsion slot 14855 | -6/Lower Caves | Identified exit to Zion 14855 | -6/Lower Caves | Entered Zion 14878 | -6/Zion | Acquired unknown access codes intercepted by a Zionite 14879 | -6/Zion | Discovered new exit (range 11) 14936 | -6/Zion | Found Prototype Special Weapon 14936 | -6/Zion | Identified RU-N14's Throwing Claymores 14945 | -6/Zion | Found CR-A16's Pointy Stick 14950 | -6/Zion | Given the Hacking Drone Bay 14993 | -6/Zion | Turned away by Imprinter 15015 | -6/Zion | Learned location of Armory (-4) 15042 | -6/Zion | Build established: Sprinter 15086 | -6/Zion | Found Prototype Device 15086 | -6/Zion | Identified Mobile Refinery Mk. CCLXVII 15106 | -6/Zion | Identified exit to Proximity Caves 15107 | -6/Zion | Entered Proximity Caves 15113 | -5/Proximity Caves | Learned Factory terminal intel 15321 | -5/Proximity Caves | Discovered exit to Factory (range 9) 15332 | -5/Proximity Caves | Entered Factory 15332 | -5/Factory | Evolved 2 slots: Utility x2 15334 | -5/Factory | Loaded intel: 26 terminal locations 15510 | -5/Factory | Loaded intel: 8 recycling unit locations 15600 | -5/Factory | Identified exit to Upper Caves 15619 | -5/Factory | Build established: Scout 15665 | -5/Factory | Discovered new exit (range 20) 15757 | -5/Factory | Manually triggered Chute Trap 15757 | -5/Factory | Sucked down chute 15757 | -5/Factory | Entered Waste 15758 | -5/Waste | Met a frightened Derelict 15771 | -5/Waste | Spotted C-40 Crusher 15775 | -5/Waste | Spotted C-40 Crusher 15775 | -5/Waste | Spotted C-40 Crusher 15776 | -5/Waste | Spotted C-40 Crusher 15779 | -5/Waste | Warlord forces began an assault 15789 | -5/Waste | Spotted C-40 Crusher 15794 | -5/Waste | Allies destroyed C-40 Crusher 15802 | -5/Waste | Allies destroyed C-40 Crusher 15811 | -5/Waste | Allies destroyed C-40 Crusher 15816 | -5/Waste | Spotted C-40 Crusher 15829 | -5/Waste | Discovered new exit (range 22) 15833 | -5/Waste | Identified exit to Factory 15833 | -5/Waste | Entered Factory 15858 | -5/Factory | Lost 10 allies 15887 | -5/Factory | Loaded intel: 8 recycling unit locations 16041 | -5/Factory | Entered Upper Caves 16120 | -5/Upper Caves | Learned Factory stockpile data 16137 | -5/Upper Caves | Discovered new exit (range 14) 16185 | -5/Upper Caves | Identified exit to Upper Caves 16185 | -5/Upper Caves | Entered another Upper Caves area 16186 | -5/Upper Caves | Discovered new exit (range 18) 16186 | -5/Upper Caves | Found DCF Scrap (14 items) 16208 | -5/Upper Caves | Attracted the attention of an 0b10 checkpoint 16264 | -5/Upper Caves | Spotted B-75 Beast 16290 | -5/Upper Caves | Learned Factory non-interactive machine intel 16310 | -5/Upper Caves | Discovered new exit (range 8) 16328 | -5/Upper Caves | Identified exit to Warlord 16328 | -5/Upper Caves | Entered Warlord 16349 | -5/Warlord | Learned Research emergency access door positions 16349 | -5/Warlord | Learned Factory terminal intel 16364 | -5/Warlord | Build established: Hacker-Scout 16388 | -5/Warlord | Received a Watcher feed algorithm from an ecstatic Tinkerer 16484 | -5/Warlord | Warlord's base attacked by MAIN.C 16488 | -5/Warlord | Found Prototype Energy Cannon 16488 | -5/Warlord | Identified Vortex Cannon 16513 | -5/Warlord | Rebuked by Warlord 16536 | -5/Warlord | Spotted B-86 Titan 16538 | -5/Warlord | Spotted B-75 Beast 16827 | -5/Warlord | Build established: Hacker-Sprinter 16834 | -5/Warlord | Warlord forces counterattacked 16857 | -5/Warlord | Spotted Executioner 16924 | -5/Warlord | Found Prototype Processor 16924 | -5/Warlord | Identified Exp. Core Analyzer 16927 | -5/Warlord | Lost 3 allies 16964 | -5/Warlord | Spotted Executioner 16994 | -5/Warlord | Spotted Executioner 17031 | -5/Warlord | Spotted Executioner 17075 | -5/Warlord | Spotted Executioner 17090 | -5/Warlord | Lost 20 allies 17112 | -5/Warlord | Spotted B-86 Titan 17112 | -5/Warlord | Spotted B-75 Beast 17159 | -5/Warlord | Warlord base infiltrated, sounded retreat 17232 | -5/Warlord | Build established: Sprinter 17309 | -5/Warlord | Spotted Striker 17310 | -5/Warlord | Spotted Executioner 17317 | -5/Warlord | Discovered new exit (range 14) 17319 | -5/Warlord | Identified exit to Proximity Caves 17327 | -5/Warlord | Entered Proximity Caves 17329 | -4/Proximity Caves | Spotter reported a threat 17330 | -4/Proximity Caves | Spotter reported a threat 17341 | -4/Proximity Caves | Lost 3 allies 17351 | -4/Proximity Caves | Learned Research interactive machine intel 17357 | -4/Proximity Caves | Spotted B-86 Titan 17367 | -4/Proximity Caves | Learned Research stockpile data 17401 | -4/Proximity Caves | Spotter reported a threat 17521 | -4/Proximity Caves | Discovered new exit (range 6) 17521 | -4/Proximity Caves | Identified exit to Factory 17521 | -4/Proximity Caves | Entered Factory 17521 | -4/Factory | Evolved 2 slots: Utility x2 17522 | -4/Factory | Identified exit to Armory 17524 | -4/Factory | Loaded intel: 212 non-interactive machine locations 17525 | -4/Factory | Loaded intel: 26 terminal locations 17569 | -4/Factory | Discovered new exit (range 18) 17574 | -4/Factory | Identified exit to Upper Caves 17610 | -4/Factory | Loaded intel: 8 recycling unit locations 17759 | -4/Factory | Entered Upper Caves 17810 | -4/Upper Caves | Build established: Infiltrator-Ninja 17983 | -4/Upper Caves | Discovered new exit (range 13) 17988 | -4/Upper Caves | Identified exit to Upper Caves 17988 | -4/Upper Caves | Entered another Upper Caves area 18058 | -4/Upper Caves | Discovered new exit (range 22) 18064 | -4/Upper Caves | Identified exit to Zhirov 18065 | -4/Upper Caves | Entered Zhirov 18065 | -4/Zhirov | Discovered new exit (range 3) 18069 | -4/Zhirov | Met Zhirov 18073 | -4/Zhirov | Learned location of Quarantine (-2) 18073 | -4/Zhirov | Learned location of Command (-1) 18076 | -4/Zhirov | Zhirov requested help retrieving the SGEMP Prototype 18079 | -4/Zhirov | Found Alien Artifact 18079 | -4/Zhirov | Identified Integrated Reactor 18079 | -4/Zhirov | Installed Integrated Reactor, increased core energy generation (+10) 18085 | -4/Zhirov | Found Alien Artifact 18093 | -4/Zhirov | Revealed the true nature of CR-A16's Pointy Stick 18129 | -4/Zhirov | Identified exit to Proximity Caves 18129 | -4/Zhirov | Entered Proximity Caves 18212 | -3/Proximity Caves | Attracted the attention of an 0b10 checkpoint 18304 | -3/Proximity Caves | Discovered new exit (range 5) 18305 | -3/Proximity Caves | Identified exit to Research 18310 | -3/Proximity Caves | Entered Research 18310 | -3/Research | Evolved 2 slots: Propulsion x1, Utility x1 18313 | -3/Research | Loaded intel: 44 interactive machine locations 18336 | -3/Research | Discovered new exit (range 16) 18339 | -3/Research | Identified exit to Research 18352 | -3/Research | Identified exit to Testing 18397 | -3/Research | Build established: Hacker-Scout 18423 | -3/Research | Discovered exit to Research (range 14) 18469 | -3/Research | Loaded intel: 5 recycling unit locations 18547 | -3/Research | Entered Testing 18558 | -3/Testing | Found Prototype Protection 18559 | -3/Testing | Found Prototype Protection 18559 | -3/Testing | Identified Lgt. Regenerative Plating 18576 | -3/Testing | Found Prototype Device 18576 | -3/Testing | Identified AEGIS Remote Shield 18588 | -3/Testing | Found Fusion Bomb Launcher 18635 | -3/Testing | Found Prototype Device 18635 | -3/Testing | Identified 2N-1CE's Frost Array 18649 | -3/Testing | Discovered exit to Research (range 15) 18654 | -3/Testing | Spotted PD-W7SE9AP4IA 18666 | -3/Testing | Found Prototype Device 18666 | -3/Testing | Identified Exp. Hardlight Generator 18732 | -3/Testing | Entered Research 18732 | -2/Research | Evolved 2 slots: Power x1, Propulsion x1 18740 | -2/Research | Spotted B-90 Cyclops 18922 | -2/Research | Identified exit to Quarantine 18938 | -2/Research | Discovered new exit (range 15) 18964 | -2/Research | Entered Quarantine 18965 | -2/Quarantine | Found Alien Artifact 18966 | -2/Quarantine | Identified Transdimensional Reconstructor (x2) 18966 | -2/Quarantine | Warped through subspace 18990 | -2/Quarantine | Found Alien Artifact 18994 | -2/Quarantine | Found Alien Artifact 18994 | -2/Quarantine | Identified Dimensional Node Initializer 18994 | -2/Quarantine | Initialized slip node 18996 | -2/Quarantine | Found Dimensional Node Initializer 19046 | -2/Quarantine | Cryocooling Duct disabled 19057 | -2/Quarantine | Found Alien Slashing Weapon 19057 | -2/Quarantine | Identified Sigix Broadsword 19061 | -2/Quarantine | Ambient heat levels rising (+20) 19061 | -2/Quarantine | Non-combat units ordered to evacuate 19130 | -2/Quarantine | Discovered new exit (range 10) 19196 | -2/Quarantine | Found Alien Artifact 19198 | -2/Quarantine | Identified Subatomic Replicator 19198 | -2/Quarantine | Used Subatomic Replicator to create Alien Artifact 19237 | -2/Quarantine | Spotted Fortress 19246 | -2/Quarantine | Discovered new exit (range 6) 19246 | -2/Quarantine | Discovered new exit (range 7) 19246 | -2/Quarantine | Identified exit to Protoforge 19250 | -2/Quarantine | Entered Protoforge 19369 | -2/Protoforge | Spotted Hotshot 19369 | -2/Protoforge | Spotted Hotshot 19379 | -2/Protoforge | Spotted Hotshot 19395 | -2/Protoforge | Spotted Hotshot 19422 | -2/Protoforge | Superfortress began startup sequence 19508 | -2/Protoforge | Spotted Hotshot 19508 | -2/Protoforge | Spotted Hotshot 19657 | -2/Protoforge | Spotted Immortal 19657 | -2/Protoforge | Spotted Immortal 19665 | -2/Protoforge | Spotted EXE-6 19665 | -2/Protoforge | Spotted EXE-6 19676 | -2/Protoforge | Spotted SKR-2 19679 | -2/Protoforge | UFD initiated attack on Protoforge 19679 | -2/Protoforge | Loaded intel: 3 recycling unit locations 19711 | -2/Protoforge | Found Prototype Processor 19711 | -2/Protoforge | Identified Exp. Armor Integrity Analyzer 19715 | -2/Protoforge | Optimus greeted in Protoforge 19722 | -2/Protoforge | Found Prototype Ballistic Gun 19724 | -2/Protoforge | Found Prototype Ballistic Gun 19732 | -2/Protoforge | Spotted SKR-2 19737 | -2/Protoforge | Identified Cep. XC Strikerail (x2) 19760 | -2/Protoforge | Found Prototype Processor 19760 | -2/Protoforge | Identified Exp. Melee Analysis Suite 19767 | -2/Protoforge | Initialized slip node 19780 | -2/Protoforge | P-80 Master assimilated allied 02F13-D 19792 | -2/Protoforge | Identified Supercharged TR 19792 | -2/Protoforge | Warped through subspace to slip node 19793 | -2/Protoforge | Optimus attacked Superfortress 19796 | -2/Protoforge | Spotted Striker 19796 | -2/Protoforge | Spotted EXE-6 19803 | -2/Protoforge | Found Cep. XC Strikerail 19806 | -2/Protoforge | Found Exp. Melee Analysis Suite 19807 | -2/Protoforge | Spotted Decapitator 19810 | -2/Protoforge | Spotted Striker 19833 | -2/Protoforge | Scraphulk reinforcements arrived 19837 | -2/Protoforge | Found Prototype Power Core 19837 | -2/Protoforge | Identified Cep. Zero-point Core 19846 | -2/Protoforge | Scraphulk reinforcements arrived? 19848 | -2/Protoforge | Lost 13 allies 19853 | -2/Protoforge | Found Prototype Ballistic Cannon 19854 | -2/Protoforge | Identified Cep. Miniperforator 19872 | -2/Protoforge | Found Cep. Zero-point Core 19891 | -2/Protoforge | Forge Plexus network access discovered 19921 | -2/Protoforge | Spotted Striker 19921 | -2/Protoforge | Spotted Executioner 19945 | -2/Protoforge | Destroyed Executioner 19992 | -2/Protoforge | Spotted Striker 19993 | -2/Protoforge | Spotted Striker 19993 | -2/Protoforge | Destroyed Striker 20000 | -2/Protoforge | Spotted Executioner 20030 | -2/Protoforge | Destroyed Executioner 20051 | -2/Protoforge | Spotted Striker 20080 | -2/Protoforge | Spotted AP7-3 20107 | -2/Protoforge | Spotted Executioner 20118 | -2/Protoforge | Spotted Executioner 20120 | -2/Protoforge | Destroyed 11 combat bots 20139 | -2/Protoforge | Spotted Striker 20141 | -2/Protoforge | Build established: Scavenger-Sprinter 20146 | -2/Protoforge | UFD reported confirmed Drillbomb installation 20150 | -2/Protoforge | Lost 3 allies 20153 | -2/Protoforge | Spotted Executioner 20169 | -2/Protoforge | Spotted Striker 20176 | -2/Protoforge | Spotted Executioner 20176 | -2/Protoforge | Spotted Overlord 20224 | -2/Protoforge | Spotted Executioner 20244 | -2/Protoforge | Lost 4 allies 20263 | -2/Protoforge | Spotted Striker 20278 | -2/Protoforge | Spotted Executioner 20278 | -2/Protoforge | Spotted Executioner 20361 | -2/Protoforge | Spotted Executioner 20370 | -2/Protoforge | Spotted Striker 20371 | -2/Protoforge | Lost 3 allies 20371 | -2/Protoforge | Spotted Striker 20371 | -2/Protoforge | Spotted Executioner 20396 | -2/Protoforge | Spotted Striker 20396 | -2/Protoforge | Spotted Executioner 20397 | -2/Protoforge | Destroyed Striker 20414 | -2/Protoforge | Spotted Striker 20416 | -2/Protoforge | Spotted Striker 20418 | -2/Protoforge | Spotted Striker 20424 | -2/Protoforge | Destroyed Striker 20426 | -2/Protoforge | Destroyed Striker 20519 | -2/Protoforge | Scanned by Researcher 20527 | -2/Protoforge | Spotted V445-k 20530 | -2/Protoforge | Found Cep. Antigrav Storage Unit 20533 | -2/Protoforge | Spotted V366-n 20533 | -2/Protoforge | Found Cep. NT7 Matterbank 20534 | -2/Protoforge | Spotted V928-l 20534 | -2/Protoforge | Found Cep. Matter Streamer 20583 | -2/Protoforge | Spotted V770-e 20583 | -2/Protoforge | Found Cep. Plasma Driver 20584 | -2/Protoforge | Spotted V565-s 20584 | -2/Protoforge | Spotted V371-q 20584 | -2/Protoforge | Found Exp. Jetlance 20585 | -2/Protoforge | Spotted V471-k 20586 | -2/Protoforge | Found Faulty Cep. Plasma Driver 20587 | -2/Protoforge | Found Exp. Jetlance 20610 | -2/Protoforge | Found Crosscalibrator 20652 | -2/Protoforge | Spotted Immortal 20652 | -2/Protoforge | Spotted Immortal 20652 | -2/Protoforge | Spotted Immortal 20652 | -2/Protoforge | Spotted Decapitator 20652 | -2/Protoforge | Spotted Immortal 20652 | -2/Protoforge | Spotted Decapitator 20652 | -2/Protoforge | Spotted Decapitator 20652 | -2/Protoforge | Spotted Decapitator 20689 | -2/Protoforge | Destroyed Immortal 20739 | -2/Protoforge | Destroyed Immortal 20743 | -2/Protoforge | Found Cep. Antimissile System 20750 | -2/Protoforge | Destroyed Decapitator 20763 | -2/Protoforge | Destroyed Decapitator 20769 | -2/Protoforge | Destroyed Decapitator 20775 | -2/Protoforge | Destroyed Decapitator 20827 | -2/Protoforge | Destroyed Immortal 20853 | -2/Protoforge | Destroyed Immortal 20857 | -2/Protoforge | Found Exp. Cloaking Device 20858 | -2/Protoforge | UFD reported confirmed Drillbomb installation 20875 | -2/Protoforge | Found Cep. Melee Reflex Suite 20877 | -2/Protoforge | Found Femtoactuators 20906 | -2/Protoforge | Found Faulty Cep. Miniperforator 20936 | -2/Protoforge | Spotted V579-y 20936 | -2/Protoforge | Spotted V628-d 20937 | -2/Protoforge | Spotted Decapitator 20940 | -2/Protoforge | Spotted Executioner 20940 | -2/Protoforge | Spotted Executioner 20942 | -2/Protoforge | UFD reported confirmed Drillbomb installation 20954 | -2/Protoforge | Destroyed Executioner 20955 | -2/Protoforge | Spotted Executioner 20959 | -2/Protoforge | Spotted Executioner 20960 | -2/Protoforge | Destroyed Executioner 20962 | -2/Protoforge | Destroyed Executioner 20972 | -2/Protoforge | UFD reported confirmed Drillbomb installation 21004 | -2/Protoforge | Destroyed 8 combat bots 21140 | -2/Protoforge | Found Cep. Fieldthrust Drive 21143 | -2/Protoforge | Found Cep. Fieldthrust Drive 21149 | -2/Protoforge | Found Cep. Fieldthrust Drive 21181 | -2/Protoforge | Spotted Decapitator 21181 | -2/Protoforge | Spotted Decapitator 21181 | -2/Protoforge | Spotted Decapitator 21184 | -2/Protoforge | Destroyed Decapitator 21194 | -2/Protoforge | Destroyed Decapitator 21196 | -2/Protoforge | Destroyed Decapitator 21214 | -2/Protoforge | Spotted V226-f 21216 | -2/Protoforge | Lost 3 parts (2u1w) 21218 | -2/Protoforge | Found Cep. Rapid Grenade Launcher 21255 | -2/Protoforge | Spotted Immortal 21255 | -2/Protoforge | Spotted Immortal 21294 | -2/Protoforge | Destroyed Immortal 21328 | -2/Protoforge | Destroyed Immortal 21334 | -2/Protoforge | Found Exp. Cloaking Device 21389 | -2/Protoforge | Spotted V444-x 21395 | -2/Protoforge | Found Cep. Zero-point Core 21403 | -2/Protoforge | Spotted V467-j 21403 | -2/Protoforge | Spotted V847-y 21404 | -2/Protoforge | Found Faulty Cep. Zero-point Core 21449 | -2/Protoforge | UFD reported confirmed Drillbomb installation 21537 | -2/Protoforge | Found Cep. Core Shell 21539 | -2/Protoforge | Found Cep. Reaction Jets 21568 | -2/Protoforge | Additional patrols dispatched to research labs 21810 | -2/Protoforge | Build established: Scavenger-Ninja 22075 | -2/Protoforge | Found Cep. Thermoelectric Network 22076 | -2/Protoforge | Found Cep. Impact Drone Bay 22077 | -2/Protoforge | Found Cep. Cloak Mesh 22122 | -2/Protoforge | Found Cep. Deflector Sword 22201 | -2/Protoforge | Found Faulty Cep. Combat Aerolev Unit 22210 | -2/Protoforge | Found Faulty Cep. Combat Aerolev Unit 22420 | -2/Protoforge | Found Faulty Cep. Combat Aerolev Unit 22441 | -2/Protoforge | Build established: Scavenger-Gladiator 22558 | -2/Protoforge | UFD reported confirmed Drillbomb installation 22691 | -2/Protoforge | Identified SHELL Armor 22702 | -2/Protoforge | UFD reported confirmed Drillbomb installation 22788 | -2/Protoforge | Build established: Scavenger-Sprinter 22809 | -2/Protoforge | Spotted Striker 22812 | -2/Protoforge | Spotted 02F53-K 22840 | -2/Protoforge | Lost 5 allies 22842 | -2/Protoforge | Spotted Executioner 22849 | -2/Protoforge | Spotted Executioner 22849 | -2/Protoforge | Destroyed Executioner 22853 | -2/Protoforge | Destroyed Executioner 22896 | -2/Protoforge | Spotted Striker 22896 | -2/Protoforge | Spotted Executioner 22902 | -2/Protoforge | Destroyed Executioner 22934 | -2/Protoforge | Lost 10 allies 22963 | -2/Protoforge | Spotted Executioner 22963 | -2/Protoforge | Destroyed Executioner 22986 | -2/Protoforge | Spotted Executioner 22989 | -2/Protoforge | Destroyed Executioner 23001 | -2/Protoforge | Spotted Executioner 23003 | -2/Protoforge | Destroyed Executioner 23005 | -2/Protoforge | P-80 Master assimilated allied 02FGF-D 23016 | -2/Protoforge | Spotted Executioner 23016 | -2/Protoforge | Destroyed Executioner 23038 | -2/Protoforge | Spotted Striker 23039 | -2/Protoforge | Spotted Striker 23040 | -2/Protoforge | Lost 3 allies 23044 | -2/Protoforge | Destroyed Striker 23048 | -2/Protoforge | Spotted Striker 23048 | -2/Protoforge | Destroyed Striker 23050 | -2/Protoforge | Spotted Executioner 23050 | -2/Protoforge | Destroyed Executioner 23061 | -2/Protoforge | Destroyed Striker 23115 | -2/Protoforge | Destroyed 37 combat bots 23135 | -2/Protoforge | Spotted Executioner 23135 | -2/Protoforge | Destroyed Executioner 23138 | -2/Protoforge | Spotted Striker 23139 | -2/Protoforge | Spotted Executioner 23140 | -2/Protoforge | Spotted Executioner 23145 | -2/Protoforge | Destroyed Striker 23156 | -2/Protoforge | Spotted Executioner 23159 | -2/Protoforge | Spotted Executioner 23172 | -2/Protoforge | Discovered new exit (range 21) 23191 | -2/Protoforge | Destroyed 13 combat bots 23207 | -2/Protoforge | UFD reported confirmed Drillbomb installation 23229 | -2/Protoforge | Spotted Executioner 23229 | -2/Protoforge | Spotted Executioner 23229 | -2/Protoforge | Spotted Executioner 23234 | -2/Protoforge | Destroyed Executioner 23238 | -2/Protoforge | Destroyed Executioner 23242 | -2/Protoforge | Destroyed Executioner 23242 | -2/Protoforge | Spotted Executioner 23252 | -2/Protoforge | Destroyed Executioner 23254 | -2/Protoforge | Spotted Executioner 23254 | -2/Protoforge | Spotted Executioner 23254 | -2/Protoforge | Destroyed Executioner 23271 | -2/Protoforge | Lost 5 allies 23280 | -2/Protoforge | Destroyed 12 combat bots 23311 | -2/Protoforge | UFD reported confirmed Drillbomb installation 23331 | -2/Protoforge | Spotted Striker 23332 | -2/Protoforge | Destroyed Striker 23334 | -2/Protoforge | Spotted Striker 23336 | -2/Protoforge | Destroyed Striker 23337 | -2/Protoforge | P-80 Master assimilated allied 02FGW-D 23338 | -2/Protoforge | Spotted Striker 23338 | -2/Protoforge | Destroyed Striker 23377 | -2/Protoforge | Spotted Executioner 23378 | -2/Protoforge | Destroyed Executioner 23398 | -2/Protoforge | Lost 10 allies 23415 | -2/Protoforge | Destroyed 11 combat bots 23428 | -2/Protoforge | UFD reported confirmed Drillbomb installation 23429 | -2/Protoforge | UFD began Drillbomb countdown 23432 | -2/Protoforge | Entered Access 23432 | -1/Access | Evolved 2 slots: Power x1, Utility x1 23437 | -1/Access | Spotted Striker 23599 | -1/Access | Discovered new exit (range 7) 23605 | -1/Access | Entered Command 23630 | -1/Command | High security lockdown imminent 23644 | -1/Command | Spotted M Guard 23647 | -1/Command | Spotted M Guard 23647 | -1/Command | Spotted Combat Programmer 23649 | -1/Command | Spotted Combat Programmer 23653 | -1/Command | Destroyed 12 combat bots 23662 | -1/Command | Destroyed Combat Programmer 23665 | -1/Command | Destroyed Combat Programmer 23683 | -1/Command | Destroyed M Guard 23696 | -1/Command | Destroyed M Guard 23696 | -1/Command | All MAIN.C guards destroyed 23698 | -1/Command | Found Prototype Reactor 23698 | -1/Command | Identified Zero-point Reactor 23710 | -1/Command | High security lockdown engaged 23729 | -1/Command | Met MAIN.C 23743 | -1/Command | 0b10 Conduit disabled 23771 | -1/Command | Destroyed MAIN.C Shell 23773 | -1/Command | MAIN.C activated Command garrisons 23807 | -1/Command | Destroyed MAIN.C 23809 | -1/Command | Discovered new exit (range 43) 23809 | -1/Command | Discovered new exit (range 71) 23809 | -1/Command | Extracted map data and part IDs from MAIN.C's data core 23813 | -1/Command | Found Zero-point Reactor 23817 | -1/Command | Found Centrium Heavy Armor Plating 23834 | -1/Command | Lost 3 parts (1n2u) 23990 | -1/Command | Spotted Striker 24378 | -1/Command | Spotted Executioner 25672 | -1/Command | Found Exp. Core Analyzer 25723 | -1/Command | Found Hvy. Regenerative Plating 25853 | -1/Command | Found Zero-point Reactor 25860 | -1/Command | Found Thermal Barrier 25862 | -1/Command | Found Exp. System Purifier 26227 | -1/Command | Warped through subspace to slip node 26227 | -1/Command | Discovered new exit (range 5) 26233 | -1/Command | Entered Access_0 26234 | -1/Access_0 | Met Architect 26239 | -1/Access_0 | Architect warped through subspace 26260 | -1/Access_0 | Destroyed A8 26286 | -1/Access_0 | Architect warped through subspace 26298 | -1/Access_0 | Subspace Access Node disabled 26325 | -1/Access_0 | Found Integrated Dissipator 26325 | -1/Access_0 | Installed Integrated Dissipator, increased core heat dissipation (+20) 26335 | -1/Access_0 | Architect warped through subspace 26346 | -1/Access_0 | Subspace Access Node disabled 26371 | -1/Access_0 | Architect warped through subspace 26397 | -1/Access_0 | A6 warped into view 26439 | -1/Access_0 | Architect warped through subspace 26449 | -1/Access_0 | Core integrity fell below 50% 26483 | -1/Access_0 | Lost 14 parts (2p7n4u1w) 26506 | -1/Access_0 | Core integrity fell below 20% 26535 | -1/Access_0 | A5 warped into view 26568 | -1/Access_0 | Lost 4 parts (1p1n1u1w) 26576 | -1/Access_0 | Destroyed by Architect with Modified Sigix Sheargun Last Messages --------------- 26514_ Penetrated by Quantum Shear. 26514_ Hyb. Graviton Reactor destroyed. 26514_ Quantum Shear penetrates Wall. 26516_ Enhanced Grunt suffers critical hit (Impale). 26516_ Cld. Antigrav System destroyed. 26516_ Quantum Shear penetrates Wall. 26516_ Penetrated by Quantum Shear. 26519_ Enhanced Grunt Lyr. Medium Armor Plating severed. 26530_ Quantum Shear penetrates Wall. A5 warps into view. 26535_ A5: "I hear we have an intruder. That's a first." 26537_ Penetrated by Quantum Shear. 26537_ Exp. Jetlance destroyed. 26544_ Penetrated by Quantum Shear. 26550_ 41XDPUE GA7I#HKVNFEZX P8ZKZX3OL 26560_ Penetrated by Quantum Shear. 26566_ Quantum Shear penetrates Wall. Map ----- +----------------------------------------------------+ | ??????????????????# #????# #?####### #### | | ??????????????????# ?????# #?# ## ###?? | | ?????????????????? ?????# ?# ##?##???# | | ?????????????????###?????# #####" #???##?#? | | ?????????????????????????# ##???????# ######### | | ????????????????????????# ##????????# | | ????????????????????????? ##?????????# | | ????????????????????????? #??????????## ######### | | ????????????????????????? ????????????# #?#?????# | | ???????????????????????? ????????????# #?#?????? | | ???????????????????????? #????????????# #????#?## | | ????????????????????????#?????????????# #??????## | | ??????????????????????????????????????# #######?? | | ??????????????????????????????????????# ###? | | ??????????????????????????????????????# ###? | | ??????????????????????????????????????#"##"" #??? | | ????????????????????????????#############??" ##? | | ????????????????????????????# #????# ###? | | ????????????????????????????# ##### #?? | | ????????????????????????????# #?????# ##? | | ????????????????????????????# #?????## ## | | ????????????????????????????# ###????## ## | | ??????????????????????????### ####??## | | ????????????????????????###;; ##### #" | | ????????????????????# ## ## 0 ## | | ????????????????????# @ ####### | | ????????????????????# ## #########????## | | ??????????????? ;; ###????????????#? | | ????????????" ### ##???????????????? | | ????????????" ???## ##???????????#????# | | ????????????" ??????## ###?????????????????? | | ????????????" ????????#####???????????????????? | | ????????????###??????????????????????????????????? | | ?????????????????????????????????????????????????? | | ????????????????????????????????????????????????#? | | ?????????????????????????????????????????????????? | | ?????????????????????????????????????????????????? | | ?????????????????????????????????????????????????? | | ?????????????????????????????????????????????????? | | ?????????????????????????????????????????????????? | | ?????????????????????????????????????????????????? | | ?????????????????????????????????????????????????? | | ?????????????????????????????????????????????????? | | ?????????????????????????????????????????????????? | | ?????????????????????????????????????????????????? | | ?????????????????????????????????????????????????? | | ?????????????????????????????????????????????????? | | ?????????????????????????????????????????????????? | | ?????????????????????????????????????????????????? | | ?????????????????????????????????????????????????? | +----------------------------------------------------+ Best States ------------- Heat Dissipation 172 Energy Generation 83 Energy Capacity 1660 Matter Stores 300 Matter Capacity 300 Sight Range 23 Robot Scan Range 20 Terrain Scan Range 24 Terrain Scan Density 210 ECM Strength 1 Cloak Strength 6 Armor Coverage 900 Resistance: TH 50 Core Shielding 90 Weapon Shielding 90 Point Defense Rating 480 Melee Speed Boost 50 Evasion (%) 82 Melee Accuracy 24 Core Analysis 12 Armor Integrity Analysis 50 Recoil Reduction 4 Offensive Hacking 28 Defensive Hacking 14 Authchip Count 1 Item Schematics ----------------- Lrg. Storage Unit | -9/Materials | Scanalyzed Med. Storage Unit | -9/Materials | Scanalyzed Adv. Weight Redist. System | -8/Materials | Scanalyzed Huge Storage Unit | -8/Materials | Scanalyzed Imp. Light Armor Plating | -8/Recycling | Hacked Core Analyzer | -8/Recycling | Hacked Cld. VTOL Module | -6/Factory | Hacked Enh. Optical Array | -6/Factory | Hacked KE Penetrator | -6/Zion | Archive Thermic Laser | -6/Zion | Archive Imp. System Restoration Module | -6/Zion | Archive Imp. Coolant Injector | -6/Zion | Archive Adv. Terrain Scanner | -6/Zion | Archive Imp. System Shield | -6/Zion | Archive Neutrino Core | -6/Zion | Archive Hvy. Gauss Cannon | -6/Zion | Archive Imp. Remote Datajack | -6/Zion | Archive Phase Gun | -6/Zion | Archive Focal Shield | -6/Zion | Archive Variable Charge Gun | -6/Zion | Archive EM Shield | -6/Zion | Archive Field Propulsion Drive | -6/Zion | Archive Assault Drone Bay | -4/Zhirov | Free Exp. Heat Sink | -4/Zhirov | Free Exp. Optical Array | -4/Zhirov | Free Imp. Arc Thrower | -4/Zhirov | Free Adv. Quantum Shading Machine | -2/Protoforge | Archive Centrium Heavy Armor Plating | -2/Protoforge | Archive Imp. Thermal Defense Suite | -2/Protoforge | Archive Exp. Biometal Leg | -2/Protoforge | Archive Hvy. Proton Cannon | -2/Protoforge | Archive Exp. Cooling System | -2/Protoforge | Archive Hvy. Dispersion Rifle | -2/Protoforge | Archive Robot Schematics ------------------ A-15 Conveyor | -6/Zion | Archive H-66 Slayer | -6/Zion | Archive L-61 Swordsman | -6/Zion | Archive A-27 Freighter | -2/Protoforge | Archive R-10 Processor | -2/Protoforge | Archive Fabricated ------------ Nothing Repaired ---------- Med. Laser | 22% | -10/Materials Hvy. Assault Rifle | 22% | -8/Materials Hvy. Assault Rifle | 40% | -8/Materials Hrd. Light Armor Plating | 35% | -8/Storage Adv. Beam Rifle | 61% | -8/Storage Lrg. Storage Unit | 86% | -8/Storage Alien Tech Used ----------------- Core Expander Integrated Reactor Transdimensional Reconstructor Dimensional Node Initializer Sigix Broadsword Subatomic Replicator Supercharged TR Integrated Dissipator Achievements -------------- None Challenges ------------ None Game ------ Seed BiometalWardroneBallwheel Manual? 0 Play Time 08:10:34 Cumulative 233.7 hours Start 2025.06.27 @ 02:26:22 End 2025.06.29 @ 02:28:08 Sessions 17 Manual Loads 0 Difficulty Rogue Special Mode None Game No. 101 Rogue 101 Adventurer 0 Explorer 0 Win Type - Total 12 Types 1/0/7/0/0/1/2/0/0/1 Lore% 71 Gallery% 67 Achievement% 67 Wizard Run 0 Options --------- Layout 1 ASCII 0 Keyboard 0 Movement Arrows Keybinds 0 Fullscreen 2 Font 24/Terminus Map View 50x35 Zoom Use 0% Tactical HUD 1 Map Filters NONE Filters NONE Steam 1 RUN: 8d1ca8ba-7b52-4edb-9a54-178d5a0a04eb